Workbook

Sheet Orçamento
O3: UNIDADE ESCOLAR | X3: CÓDIGO INEP
O4: CENTRO DE ENSINO EM PERÍODO INTEGRAL POLIVALENTE ANTÔNIO C PANIAGO | X4: 52053385
A6: Nmax | M6: Ajustar altura? | O6: OBRA | S6: DATA | X6: CIDADE
A7: =MAX($C$18:$C$522) -> 4 | M7: NÃO | O7: REFORMA E AMPLIAÇÃO | S7: 2020-04-23 | X7: MINEIROS
O9: CRE | R9: ENDEREÇO | X9: REFERÊNCIA AGETOP
O10: MINEIROS | R10: RUA 6 A, MARTINS, CEP:75832-028 | X10: DEZ/18 | Y10: ONERADA
O12: ÁREA EXISTENTE (M²) | R12: ÁREA A CONSTRUIR (M²) | S12: ÁREA TOTAL CONSTRUÍDA (M²) | X12: REFERÊNCIA SINAPI
O13: 3044.01 | R13: 398.67 | S13: 3442.68 | X13: AGO/19 | Y13: ONERADA
L15: FILTRO | O15: PLANILHA ORÇAMENTÁRIA
A16: Nível E | B16: Save Nivel | C16: Nível C | D16: Altura | E16: n1 | F16: n2 | G16: n3 | H16: n4 | I16: n5 | J16: Czero | K16: Cnível | L16: ↓ | M16: Nível | N16: Nível Corrigido | O16: ITEM | P16: TABELA | Q16: CODIGO | R16: DESCRIÇÃO DOS SERVIÇOS | S16: UNID | T16: QUANT | U16: REPET | V16: QUANT TOTAL | W16: MAT | X16: MO | Y16: VALOR UNIT | Z16: VALOR TOTAL | AA16: OBSERVAÇÕES¹
A17: =CHOOSE(1+LOG(1+2*(ORÇAMENTO.Nivel="Nível 1")+4*(ORÇAMENTO.Nivel="Nível 2")+8*(ORÇAMENTO.Nivel="Nível 3")+16*(ORÇAMENTO.Nivel="Nível 4")+32*(ORÇAMENTO.Nivel="Serviço"),2),0,1,2,3,4,"S") -> S | B17: =IF(OR(C17="s",C17=0),OFFSET(B17,-1,0),C17) -> Save Nivel | C17: =IF(OFFSET(C17,-1,0)="L",1,IF(OFFSET(C17,-1,0)=1,2,IF(OR(A17="s",A17=0),"S",IF(AND(OFFSET(C17,-1,0)=2,A17=4),3,IF(AND(OR(OFFSET(C17,-1,0)="s",OFFSET(C17,-1,0)=0),A17<>"s",A17>OFFSET(B17,-1,0)),OFFSET(B17,-1,0),A17))))) -> S | D17: =IF(OR(C17="S",C17=0),0,IF(ISERROR(K17),J17,SMALL(J17:K17,1))) -> 0 | E17: =IF($C17=1,OFFSET(E17,-1,0)+1,OFFSET(E17,-1,0)) -> n1 | F17: =IF($C17=1,0,IF($C17=2,OFFSET(F17,-1,0)+1,OFFSET(F17,-1,0))) -> n2 | G17: =IF(AND($C17<=2,$C17<>0),0,IF($C17=3,OFFSET(G17,-1,0)+1,OFFSET(G17,-1,0))) -> n3 | H17: =IF(AND($C17<=3,$C17<>0),0,IF($C17=4,OFFSET(H17,-1,0)+1,OFFSET(H17,-1,0))) -> n4 | I17: =IF(AND($C17<=4,$C17<>0),0,IF(AND($C17="S",$Y17>0),OFFSET(I17,-1,0)+1,OFFSET(I17,-1,0))) -> n5 | J17: =IF(OR($C17="S",$C17=0),0,MATCH(0,OFFSET($D17,1,$C17,ROW($C$522)-ROW($C17)),0)) -> 0 | K17: =IF(OR($C17="S",$C17=0),0,MATCH(OFFSET($D17,0,$C17)+1,OFFSET($D17,1,$C17,ROW($C$522)-ROW($C17)),0)) -> 0 | M17: Serviço | N17: Serviço | O17: - | P17: SINAPI | R17: (sem código) | S17: - | U17: REPET | V17: - | W17: 0 | X17: 0 | Y17: 0 | Z17: -
A18: 0 | C18: L | D18: =COUNTA(OFFSET(D18,1,0):D$522) -> 503 | E18: =LEFT(O19,1)-1 -> 0 | L18: F | M18: LOTE | N18: LOTE | O18: REFORMA E AMPLIAÇÃO - CENTRO DE ENSINO EM PERÍODO INTEGRAL POLIVALENTE ANTÔNIO C PANIAGO | Z18: 628742.42
A19: 1 | B19: =IF(OR(C19="s",C19=0),OFFSET(B19,-1,0),C19) -> 1 | C19: =IF(OFFSET(C19,-1,0)="L",1,IF(OFFSET(C19,-1,0)=1,2,IF(OR(A19="s",A19=0),"S",IF(AND(OFFSET(C19,-1,0)=2,A19=4),3,IF(AND(OR(OFFSET(C19,-1,0)="s",OFFSET(C19,-1,0)=0),A19<>"s",A19>OFFSET(B19,-1,0)),OFFSET(B19,-1,0),A19))))) -> 1 | D19: =IF(OR(C19="S",C19=0),0,IF(ISERROR(K19),J19,SMALL(J19:K19,1))) -> 223 | E19: =IF($C19=1,OFFSET(E19,-1,0)+1,OFFSET(E19,-1,0)) -> 1 | F19: =IF($C19=1,0,IF($C19=2,OFFSET(F19,-1,0)+1,OFFSET(F19,-1,0))) -> 0 | G19: =IF(AND($C19<=2,$C19<>0),0,IF($C19=3,OFFSET(G19,-1,0)+1,OFFSET(G19,-1,0))) -> 0 | H19: =IF(AND($C19<=3,$C19<>0),0,IF($C19=4,OFFSET(H19,-1,0)+1,OFFSET(H19,-1,0))) -> 0 | I19: 0 | J19: =IF(OR($C19="S",$C19=0),0,MATCH(0,OFFSET($D19,1,$C19,ROW($C$522)-ROW($C19)),0)) -> 503 | K19: =IF(OR($C19="S",$C19=0),0,MATCH(OFFSET($D19,0,$C19)+1,OFFSET($D19,1,$C19,ROW($C$522)-ROW($C19)),0)) -> 223 | L19: F | M19: Nível 1 | N19: Nível 1 | O19: 1. | P19: AGETOP | R19: REFORMA | S19: UN | T19: 1 | U19: 1
A20: 2 | B20: 2 | C20: =IF(OFFSET(C20,-1,0)="L",1,IF(OFFSET(C20,-1,0)=1,2,IF(OR(A20="s",A20=0),"S",IF(AND(OFFSET(C20,-1,0)=2,A20=4),3,IF(AND(OR(OFFSET(C20,-1,0)="s",OFFSET(C20,-1,0)=0),A20<>"s",A20>OFFSET(B20,-1,0)),OFFSET(B20,-1,0),A20))))) -> 2 | D20: 11 | E20: =IF($C20=1,OFFSET(E20,-1,0)+1,OFFSET(E20,-1,0)) -> 1 | F20: =IF($C20=1,0,IF($C20=2,OFFSET(F20,-1,0)+1,OFFSET(F20,-1,0))) -> 1 | G20: =IF(AND($C20<=2,$C20<>0),0,IF($C20=3,OFFSET(G20,-1,0)+1,OFFSET(G20,-1,0))) -> 0 | H20: =IF(AND($C20<=3,$C20<>0),0,IF($C20=4,OFFSET(H20,-1,0)+1,OFFSET(H20,-1,0))) -> 0 | I20: 0 | J20: 222 | K20: 11 | L20: F | M20: Nível 2 | N20: Nível 2 | O20: 1.1. | P20: SINAPI | R20: SERVIÇOS PRELIMINARES | S20: - | U20: 1
A21: S | B21: 2 | C21: S | D21: 0 | E21: 1 | F21: 1 | G21: 0 | H21: 0 | I21: 0 | J21: 0 | K21: 0 | L21: F | M21: Serviço | N21: Serviço | O21: 1.1.0.0.1. | P21: SINAPI | Q21: 97640 | R21: REMOÇÃO DE FORROS DE DRYWALL, PVC E FIBROMINERAL, DE FORMA MANUAL, SEM REAPROVEITAMENTO. AF_12/2017 | S21: M2 | T21: 2240 | U21: 1
A22: S | B22: 2 | C22: S | D22: 0 | E22: 1 | F22: 1 | G22: 0 | H22: 0 | I22: 0 | J22: 0 | K22: 0 | L22: F | M22: Serviço | N22: Serviço | O22: 1.1.0.0.2. | P22: SINAPI | Q22: 97642 | R22: REMOÇÃO DE TRAMA METÁLICA OU DE MADEIRA PARA FORRO, DE FORMA MANUAL, SEM REAPROVEITAMENTO. AF_12/2017 | S22: M2 | T22: 2240 | U22: 1
A23: S | B23: 2 | C23: S | D23: 0 | E23: 1 | F23: 1 | G23: 0 | H23: 0 | I23: 0 | J23: 0 | K23: 0 | L23: F | M23: Serviço | N23: Serviço | O23: 1.1.0.0.3. | P23: SINAPI | Q23: 97644 | R23: REMOÇÃO DE PORTAS, DE FORMA MANUAL, SEM REAPROVEITAMENTO. AF_12/2017 | S23: M2 | T23: 19.35 | U23: 1 | AA23: Referência: AGETOP - 20106
A24: S | B24: 2 | C24: S | D24: 0 | E24: 1 | F24: 1 | G24: 0 | H24: 0 | I24: 0 | J24: 0 | K24: 0 | L24: F | M24: Serviço | N24: Serviço | O24: 1.1.0.0.4. | P24: AGETOP | Q24: 20112 | R24: DEM.PISO CERAM. INCLUS. RETIRADA DE CONTRAPISO SOBRE LASTRO CONC.C/TR.CB.E CARGA | S24: m2 | T24: 63.6 | U24: 1
A25: S | B25: 2 | C25: S | D25: 0 | E25: 1 | F25: 1 | G25: 0 | H25: 0 | I25: 0 | J25: 0 | K25: 0 | L25: F | M25: Serviço | N25: Serviço | O25: 1.1.0.0.5. | P25: AGETOP | Q25: 20121 | R25: DEM. MANUAL EM CONCR.SIMPLES C/TR.ATE CB.E CARGA (O.C.) | S25: m3 | T25: 5.85 | U25: 1
A26: S | B26: 2 | C26: S | D26: 0 | E26: 1 | F26: 1 | G26: 0 | H26: 0 | I26: 0 | J26: 0 | K26: 0 | L26: F | M26: Serviço | N26: Serviço | O26: 1.1.0.0.6. | P26: SINAPI | Q26: 97633 | R26: DEMOLIÇÃO DE REVESTIMENTO CERÂMICO, DE FORMA MANUAL, SEM REAPROVEITAMENTO. AF_12/2017 | S26: M2 | T26: 154.2 | U26: 1 | AA26: Referência: AGETOP - 20115
A27: S | B27: 2 | C27: S | D27: 0 | E27: 1 | F27: 1 | G27: 0 | H27: 0 | I27: 0 | J27: 0 | K27: 0 | L27: F | M27: Serviço | N27: Serviço | O27: 1.1.0.0.7. | P27: SINAPI | Q27: 97622 | R27: DEMOLIÇÃO DE ALVENARIA DE BLOCO FURADO, DE FORMA MANUAL, SEM REAPROVEITAMENTO. AF_12/2017 | S27: M3 | T27: 9.08 | U27: 1 | AA27: Referência: AGETOP - 20118
A28: S | B28: 2 | C28: S | D28: 0 | E28: 1 | F28: 1 | G28: 0 | H28: 0 | I28: 0 | J28: 0 | K28: 0 | L28: F | M28: Serviço | N28: Serviço | O28: 1.1.0.0.8. | P28: AGETOP | Q28: 20139 | R28: DEMOLIÇAO DE BANCADAS C/ TRANSP. ATÉ CB. E CARGA | S28: m2 | T28: 5.7 | U28: 1
A29: S | B29: 2 | C29: S | D29: 0 | E29: 1 | F29: 1 | G29: 0 | H29: 0 | I29: 0 | J29: =IF(OR($C29="S",$C29=0),0,MATCH(0,OFFSET($D29,1,$C29,ROW($C$522)-ROW($C29)),0)) -> 0 | K29: =IF(OR($C29="S",$C29=0),0,MATCH(OFFSET($D29,0,$C29)+1,OFFSET($D29,1,$C29,ROW($C$522)-ROW($C29)),0)) -> 0 | L29: F | M29: Serviço | N29: Serviço | O29: 1.1.0.0.9. | P29: AGETOP | Q29: 20163 | R29: DEMOLIÇÃO DAS INSTALAÇÕES HIDROSANITÁRIAS E AFINS C/ TRANSP. ATÉ CB. E CARGA | S29: H | T29: 8 | U29: 1
A30: S | B30: 2 | C30: S | D30: 0 | E30: 1 | F30: 1 | G30: 0 | H30: 0 | I30: 0 | J30: 0 | K30: 0 | L30: F | M30: Serviço | N30: Serviço | O30: 1.1.0.0.10. | P30: SINAPI | Q30: 74209/1 | R30: PLACA DE OBRA EM CHAPA DE ACO GALVANIZADO | S30: M2 | T30: 7.5 | U30: 1 | AA30: Referência: AGETOP - 21301
A31: 2 | B31: 2 | C31: 2 | D31: 3 | E31: 1 | F31: 2 | G31: 0 | H31: 0 | I31: 0 | J31: 211 | K31: 3 | L31: F | M31: Nível 2 | N31: Nível 2 | O31: 1.2. | P31: AGETOP | R31: TRANSPORTES | S31: - | U31: 1
A32: S | B32: 2 | C32: S | D32: 0 | E32: 1 | F32: 2 | G32: 0 | H32: 0 | I32: 0 | J32: 0 | K32: 0 | L32: F | M32: Serviço | N32: Serviço | O32: 1.2.0.0.1. | P32: SINAPI | Q32: 72900 | R32: TRANSPORTE DE ENTULHO COM CAMINHAO BASCULANTE 6 M3, RODOVIA PAVIMENTADA, DMT 0,5 A 1,0 KM | S32: M3 | T32: 27.9069 | U32: 1
A33: S | B33: 2 | C33: S | D33: 0 | E33: 1 | F33: 2 | G33: 0 | H33: 0 | I33: 0 | J33: 0 | K33: 0 | L33: F | M33: Serviço | N33: Serviço | O33: 1.2.0.0.2. | P33: SINAPI | Q33: 72897 | R33: CARGA MANUAL DE ENTULHO EM CAMINHAO BASCULANTE 6 M3 | S33: M3 | T33: 27.9069 | U33: 1
A34: 2 | B34: 2 | C34: 2 | D34: 49 | E34: 1 | F34: 3 | G34: 0 | H34: 0 | I34: 0 | J34: 208 | K34: 49 | L34: F | M34: Nível 2 | N34: Nível 2 | O34: 1.3. | R34: INSTALAÇÕES ELÉTRICAS | S34: - | U34: 1
A35: 3 | B35: 3 | C35: 3 | D35: 32 | E35: 1 | F35: 3 | G35: 1 | H35: 0 | I35: 0 | J35: 48 | K35: 32 | L35: F | M35: Nível 3 | N35: Nível 3 | O35: 1.3.1. | P35: SINAPI | R35: INST. ELÉTRICAS | S35: - | U35: 1
A36: S | B36: 3 | C36: S | D36: 0 | E36: 1 | F36: 3 | G36: 1 | H36: 0 | I36: 0 | J36: 0 | K36: 0 | L36: F | M36: Serviço | N36: Serviço | O36: 1.3.1.0.1. | P36: SINAPI | Q36: 93654 | R36: DISJUNTOR MONOPOLAR TIPO DIN, CORRENTE NOMINAL DE 16A - FORNECIMENTO E INSTALAÇÃO. AF_04/2016 | S36: UN | T36: 2 | U36: 1
A37: S | B37: 3 | C37: S | D37: 0 | E37: 1 | F37: 3 | G37: 1 | H37: 0 | I37: 0 | J37: 0 | K37: 0 | L37: F | M37: Serviço | N37: Serviço | O37: 1.3.1.0.2. | P37: SINAPI | Q37: 93653 | R37: DISJUNTOR MONOPOLAR TIPO DIN, CORRENTE NOMINAL DE 10A - FORNECIMENTO E INSTALAÇÃO. AF_04/2016 | S37: UN | T37: 2 | U37: 1
A38: S | B38: 3 | C38: S | D38: 0 | E38: 1 | F38: 3 | G38: 1 | H38: 0 | I38: 0 | J38: 0 | K38: 0 | L38: F | M38: Serviço | N38: Serviço | O38: 1.3.1.0.3. | P38: SINAPI | Q38: 93656 | R38: DISJUNTOR MONOPOLAR TIPO DIN, CORRENTE NOMINAL DE 25A - FORNECIMENTO E INSTALAÇÃO. AF_04/2016 | S38: UN | T38: 6 | U38: 1
A39: S | B39: 3 | C39: S | D39: 0 | E39: 1 | F39: 3 | G39: 1 | H39: 0 | I39: 0 | J39: 0 | K39: 0 | L39: F | M39: Serviço | N39: Serviço | O39: 1.3.1.0.4. | P39: SINAPI | Q39: 91926 | R39: CABO DE COBRE FLEXÍVEL ISOLADO, 2,5 MM², ANTI-CHAMA 450/750 V, PARA CIRCUITOS TERMINAIS - FORNECIMENTO E INSTALAÇÃO. AF_12/2015 | S39: M | T39: 750 | U39: 1 | AA39: Referência: AGETOP - 70563
A40: S | B40: 3 | C40: S | D40: 0 | E40: 1 | F40: 3 | G40: 1 | H40: 0 | I40: 0 | J40: 0 | K40: 0 | L40: F | M40: Serviço | N40: Serviço | O40: 1.3.1.0.5. | P40: SINAPI | Q40: 91928 | R40: CABO DE COBRE FLEXÍVEL ISOLADO, 4 MM², ANTI-CHAMA 450/750 V, PARA CIRCUITOS TERMINAIS - FORNECIMENTO E INSTALAÇÃO. AF_12/2015 | S40: M | T40: 1386.36 | U40: 1 | AA40: Referência: AGETOP - 70564
A41: S | B41: 3 | C41: S | D41: 0 | E41: 1 | F41: 3 | G41: 1 | H41: 0 | I41: 0 | J41: 0 | K41: 0 | L41: F | M41: Serviço | N41: Serviço | O41: 1.3.1.0.6. | P41: SINAPI | Q41: 91867 | R41: ELETRODUTO RÍGIDO ROSCÁVEL, PVC, DN 25 MM (3/4"), PARA CIRCUITOS TERMINAIS, INSTALADO EM LAJE - FORNECIMENTO E INSTALAÇÃO. AF_12/2015 | S41: M | T41: 42 | U41: 1 | AA41: Referência: AGETOP - 71201
A42: S | B42: 3 | C42: S | D42: 0 | E42: 1 | F42: 3 | G42: 1 | H42: 0 | I42: 0 | J42: 0 | K42: 0 | L42: F | M42: Serviço | N42: Serviço | O42: 1.3.1.0.7. | P42: SINAPI | Q42: 91834 | R42: ELETRODUTO FLEXÍVEL CORRUGADO, PVC, DN 25 MM (3/4"), PARA CIRCUITOS TERMINAIS, INSTALADO EM FORRO - FORNECIMENTO E INSTALAÇÃO. AF_12/2015 | S42: M | T42: 275 | U42: 1 | AA42: Referência: AGETOP - 71194
A43: S | B43: 3 | C43: S | D43: 0 | E43: 1 | F43: 3 | G43: 1 | H43: 0 | I43: 0 | J43: 0 | K43: 0 | L43: F | M43: Serviço | N43: Serviço | O43: 1.3.1.0.8. | P43: SINAPI | Q43: 91836 | R43: ELETRODUTO FLEXÍVEL CORRUGADO, PVC, DN 32 MM (1"), PARA CIRCUITOS TERMINAIS, INSTALADO EM FORRO - FORNECIMENTO E INSTALAÇÃO. AF_12/2015 | S43: M | T43: 56 | U43: 1 | AA43: Referência: AGETOP - 71195
A44: S | B44: 3 | C44: S | D44: 0 | E44: 1 | F44: 3 | G44: 1 | H44: 0 | I44: 0 | J44: 0 | K44: 0 | L44: F | M44: Serviço | N44: Serviço | O44: 1.3.1.0.9. | P44: AGETOP | Q44: 71197 | R44: ELETRODUTO PVC FLEXÍVEL - MANGUEIRA CORRUGADA REFORÇADA - DIAM. 50MM | S44: M | T44: 9 | U44: 1
A45: S | B45: 3 | C45: S | D45: 0 | E45: 1 | F45: 3 | G45: 1 | H45: 0 | I45: 0 | J45: 0 | K45: 0 | L45: F | M45: Serviço | N45: Serviço | O45: 1.3.1.0.10. | P45: AGETOP | Q45: 70351 | R45: BRACADEIRA METALICA TIPO "U" DIAM. 3/4" | S45: Un | T45: 14 | U45: 1
A46: S | B46: 3 | C46: S | D46: 0 | E46: 1 | F46: 3 | G46: 1 | H46: 0 | I46: 0 | J46: 0 | K46: 0 | L46: F | M46: Serviço | N46: Serviço | O46: 1.3.1.0.11. | P46: AGETOP | Q46: 70352 | R46: BRACADEIRA METALICA TIPO "U" DIAM. 1" | S46: Un | T46: 3 | U46: 1
A47: S | B47: 3 | C47: S | D47: 0 | E47: 1 | F47: 3 | G47: 1 | H47: 0 | I47: 0 | J47: 0 | K47: 0 | L47: F | M47: Serviço | N47: Serviço | O47: 1.3.1.0.12. | P47: SINAPI | Q47: 91879 | R47: LUVA PARA ELETRODUTO, PVC, ROSCÁVEL, DN 25 MM (3/4"), PARA CIRCUITOS TERMINAIS, INSTALADA EM LAJE - FORNECIMENTO E INSTALAÇÃO. AF_12/2015 | S47: UN | T47: 14 | U47: 1 | AA47: Referência: AGETOP - 71741
A48: S | B48: 3 | C48: S | D48: 0 | E48: 1 | F48: 3 | G48: 1 | H48: 0 | I48: 0 | J48: 0 | K48: 0 | L48: F | M48: Serviço | N48: Serviço | O48: 1.3.1.0.13. | P48: SINAPI | Q48: 91880 | R48: LUVA PARA ELETRODUTO, PVC, ROSCÁVEL, DN 32 MM (1"), PARA CIRCUITOS TERMINAIS, INSTALADA EM LAJE - FORNECIMENTO E INSTALAÇÃO. AF_12/2015 | S48: UN | T48: 3 | U48: 1 | AA48: Referência: AGETOP - 71742
A49: S | B49: 3 | C49: S | D49: 0 | E49: 1 | F49: 3 | G49: 1 | H49: 0 | I49: 0 | J49: 0 | K49: 0 | L49: F | M49: Serviço | N49: Serviço | O49: 1.3.1.0.14. | P49: SINAPI | Q49: 91939 | R49: CAIXA RETANGULAR 4" X 2" ALTA (2,00 M DO PISO), PVC, INSTALADA EM PAREDE - FORNECIMENTO E INSTALAÇÃO. AF_12/2015 | S49: UN | T49: 20 | U49: 1
A50: S | B50: 3 | C50: S | D50: 0 | E50: 1 | F50: 3 | G50: 1 | H50: 0 | I50: 0 | J50: 0 | K50: 0 | L50: F | M50: Serviço | N50: Serviço | O50: 1.3.1.0.15. | P50: SINAPI | Q50: 95777 | R50: CONDULETE DE ALUMÍNIO, TIPO B, PARA ELETRODUTO DE AÇO GALVANIZADO DN 20 MM (3/4''), APARENTE - FORNECIMENTO E INSTALAÇÃO. AF_11/2016_P | S50: UN | T50: 13 | U50: 1
A51: S | B51: 3 | C51: S | D51: 0 | E51: 1 | F51: 3 | G51: 1 | H51: 0 | I51: 0 | J51: 0 | K51: 0 | L51: F | M51: Serviço | N51: Serviço | O51: 1.3.1.0.16. | P51: SINAPI | Q51: 95778 | R51: CONDULETE DE ALUMÍNIO, TIPO C, PARA ELETRODUTO DE AÇO GALVANIZADO DN 20 MM (3/4''), APARENTE - FORNECIMENTO E INSTALAÇÃO. AF_11/2016_P | S51: UN | T51: 7 | U51: 1
A52: S | B52: 3 | C52: S | D52: 0 | E52: 1 | F52: 3 | G52: 1 | H52: 0 | I52: 0 | J52: 0 | K52: 0 | L52: F | M52: Serviço | N52: Serviço | O52: 1.3.1.0.17. | P52: SINAPI | Q52: 95795 | R52: CONDULETE DE ALUMÍNIO, TIPO T, PARA ELETRODUTO DE AÇO GALVANIZADO DN 20 MM (3/4''), APARENTE - FORNECIMENTO E INSTALAÇÃO. AF_11/2016_P | S52: UN | T52: 6 | U52: 1
A53: S | B53: 3 | C53: S | D53: 0 | E53: 1 | F53: 3 | G53: 1 | H53: 0 | I53: 0 | J53: 0 | K53: 0 | L53: F | M53: Serviço | N53: Serviço | O53: 1.3.1.0.18. | P53: SINAPI | Q53: 95787 | R53: CONDULETE DE ALUMÍNIO, TIPO LR, PARA ELETRODUTO DE AÇO GALVANIZADO DN 20 MM (3/4''), APARENTE - FORNECIMENTO E INSTALAÇÃO. AF_11/2016_P | S53: UN | T53: 5 | U53: 1
A54: S | B54: 3 | C54: S | D54: 0 | E54: 1 | F54: 3 | G54: 1 | H54: 0 | I54: 0 | J54: 0 | K54: 0 | L54: F | M54: Serviço | N54: Serviço | O54: 1.3.1.0.19. | P54: AGETOP | Q54: 72395 | R54: TAMPA CEGA PARA CONDULETE METÁLICO | S54: Un | T54: 31 | U54: 1
A55: S | B55: 3 | C55: S | D55: 0 | E55: 1 | F55: 3 | G55: 1 | H55: 0 | I55: 0 | J55: 0 | K55: 0 | L55: F | M55: Serviço | N55: Serviço | O55: 1.3.1.0.20. | P55: SINAPI | Q55: 91993 | R55: TOMADA ALTA DE EMBUTIR (1 MÓDULO), 2P+T 20 A, INCLUINDO SUPORTE E PLACA - FORNECIMENTO E INSTALAÇÃO. AF_12/2015 | S55: UN | T55: 2 | U55: 1 | AA55: Referência: AGETOP - 72585
A56: S | B56: 3 | C56: S | D56: 0 | E56: 1 | F56: 3 | G56: 1 | H56: 0 | I56: 0 | J56: 0 | K56: 0 | L56: F | M56: Serviço | N56: Serviço | O56: 1.3.1.0.21. | P56: SINAPI | Q56: 91996 | R56: TOMADA MÉDIA DE EMBUTIR (1 MÓDULO), 2P+T 10 A, INCLUINDO SUPORTE E PLACA - FORNECIMENTO E INSTALAÇÃO. AF_12/2015 | S56: UN | T56: 10 | U56: 1 | AA56: Referência: AGETOP - 72578
A57: S | B57: 3 | C57: S | D57: 0 | E57: 1 | F57: 3 | G57: 1 | H57: 0 | I57: 0 | J57: 0 | K57: 0 | L57: F | M57: Serviço | N57: Serviço | O57: 1.3.1.0.22. | P57: SINAPI | Q57: 92004 | R57: TOMADA MÉDIA DE EMBUTIR (2 MÓDULOS), 2P+T 10 A, INCLUINDO SUPORTE E PLACA - FORNECIMENTO E INSTALAÇÃO. AF_12/2015 | S57: UN | T57: 1 | U57: 1 | AA57: Referência: AGETOP - 72578
A58: S | B58: 3 | C58: S | D58: 0 | E58: 1 | F58: 3 | G58: 1 | H58: 0 | I58: 0 | J58: 0 | K58: 0 | L58: F | M58: Serviço | N58: Serviço | O58: 1.3.1.0.23. | P58: SINAPI | Q58: 92004 | R58: TOMADA MÉDIA DE EMBUTIR (2 MÓDULOS), 2P+T 10 A, INCLUINDO SUPORTE E PLACA - FORNECIMENTO E INSTALAÇÃO. AF_12/2015 | S58: UN | T58: 7 | U58: 1 | AA58: Referência: AGETOP - 72578
A59: S | B59: 3 | C59: S | D59: 0 | E59: 1 | F59: 3 | G59: 1 | H59: 0 | I59: 0 | J59: 0 | K59: 0 | L59: F | M59: Serviço | N59: Serviço | O59: 1.3.1.0.24. | P59: SINAPI | Q59: 97585 | R59: LUMINÁRIA TIPO CALHA, DE SOBREPOR, COM 2 LÂMPADAS TUBULARES DE 18 W - FORNECIMENTO E INSTALAÇÃO. AF_11/2017 | S59: UN | T59: 11 | U59: 1
A60: S | B60: 3 | C60: S | D60: 0 | E60: 1 | F60: 3 | G60: 1 | H60: 0 | I60: 0 | J60: 0 | K60: 0 | L60: F | M60: Serviço | N60: Serviço | O60: 1.3.1.0.25. | P60: SINAPI | Q60: 97593 | R60: LUMINÁRIA TIPO SPOT, DE SOBREPOR, COM 1 LÂMPADA DE 15 W - FORNECIMENTO E INSTALAÇÃO. AF_11/2017 | S60: UN | T60: 1 | U60: 1 | AA60: Referência: AGETOP - 71688
A61: S | B61: 3 | C61: S | D61: 0 | E61: 1 | F61: 3 | G61: 1 | H61: 0 | I61: 0 | J61: 0 | K61: 0 | L61: F | M61: Serviço | N61: Serviço | O61: 1.3.1.0.26. | P61: SINAPI | Q61: 97610 | R61: LÂMPADA COMPACTA DE LED 10 W, BASE E27 - FORNECIMENTO E INSTALAÇÃO. AF_11/2017 | S61: UN | T61: 1 | U61: 1
A62: S | B62: 3 | C62: S | D62: 0 | E62: 1 | F62: 3 | G62: 1 | H62: 0 | I62: 0 | J62: 0 | K62: 0 | L62: F | M62: Serviço | N62: Serviço | O62: 1.3.1.0.27. | P62: SINAPI | Q62: 91953 | R62: INTERRUPTOR SIMPLES (1 MÓDULO), 10A/250V, INCLUINDO SUPORTE E PLACA - FORNECIMENTO E INSTALAÇÃO. AF_12/2015 | S62: UN | T62: 2 | U62: 1 | AA62: Referência: AGETOP - 71440
A63: S | B63: 3 | C63: S | D63: 0 | E63: 1 | F63: 3 | G63: 1 | H63: 0 | I63: 0 | J63: 0 | K63: 0 | L63: F | M63: Serviço | N63: Serviço | O63: 1.3.1.0.28. | P63: SINAPI | Q63: 91959 | R63: INTERRUPTOR SIMPLES (2 MÓDULOS), 10A/250V, INCLUINDO SUPORTE E PLACA - FORNECIMENTO E INSTALAÇÃO. AF_12/2015 | S63: UN | T63: 1 | U63: 1 | AA63: Referência: AGETOP - 71441
A64: S | B64: 3 | C64: S | D64: 0 | E64: 1 | F64: 3 | G64: 1 | H64: 0 | I64: 0 | J64: 0 | K64: 0 | L64: F | M64: Serviço | N64: Serviço | O64: 1.3.1.0.29. | P64: AGETOP | Q64: 71861 | R64: PARAFUSO P/BUCHA S-6 | S64: Un | T64: 100 | U64: 1
A65: S | B65: 3 | C65: S | D65: 0 | E65: 1 | F65: 3 | G65: 1 | H65: 0 | I65: 0 | J65: 0 | K65: 0 | L65: F | M65: Serviço | N65: Serviço | O65: 1.3.1.0.30. | P65: AGETOP | Q65: 70391 | R65: BUCHA DE NYLON S-6 | S65: Un | T65: 100 | U65: 1
A66: S | B66: 3 | C66: S | D66: 0 | E66: 1 | F66: 3 | G66: 1 | H66: 0 | I66: 0 | J66: 0 | K66: 0 | L66: F | M66: Serviço | N66: Serviço | O66: 1.3.1.0.31. | P66: AGETOP | Q66: 20162 | R66: DEMOLIÇÃO DAS INSTALAÇÕES ELÉTRICAS E AFINS C/ TRANSP. ATÉ CB. E CARGA | S66: H | T66: 40 | U66: 1
A67: 3 | B67: 3 | C67: 3 | D67: 16 | E67: 1 | F67: 3 | G67: 2 | H67: 0 | I67: 0 | J67: 16 | K67: 50 | L67: F | M67: Nível 3 | N67: Nível 3 | O67: 1.3.2. | R67: IMPLANTAÇÃO | S67: - | U67: 1
A68: S | B68: 3 | C68: S | D68: 0 | E68: 1 | F68: 3 | G68: 2 | H68: 0 | I68: 0 | J68: 0 | K68: 0 | L68: F | M68: Serviço | N68: Serviço | O68: 1.3.2.0.1. | P68: SINAPI | Q68: 93671 | R68: DISJUNTOR TRIPOLAR TIPO DIN, CORRENTE NOMINAL DE 32A - FORNECIMENTO E INSTALAÇÃO. AF_04/2016 | S68: UN | T68: 1 | U68: 1 | AA68: Referência: AGETOP - 71173
A69: S | B69: 3 | C69: S | D69: 0 | E69: 1 | F69: 3 | G69: 2 | H69: 0 | I69: 0 | J69: 0 | K69: 0 | L69: F | M69: Serviço | N69: Serviço | O69: 1.3.2.0.2. | P69: AGETOP | Q69: 71175 | R69: DISJUNTOR TRIPOLAR DE 60 A 100-A | S69: Un | T69: 1 | U69: 1
A70: S | B70: 3 | C70: S | D70: 0 | E70: 1 | F70: 3 | G70: 2 | H70: 0 | I70: 0 | J70: 0 | K70: 0 | L70: F | M70: Serviço | N70: Serviço | O70: 1.3.2.0.3. | P70: SINAPI | Q70: 91930 | R70: CABO DE COBRE FLEXÍVEL ISOLADO, 6 MM², ANTI-CHAMA 450/750 V, PARA CIRCUITOS TERMINAIS - FORNECIMENTO E INSTALAÇÃO. AF_12/2015 | S70: M | T70: 230 | U70: 1 | AA70: Referência: AGETOP - 70565
A71: S | B71: 3 | C71: S | D71: 0 | E71: 1 | F71: 3 | G71: 2 | H71: 0 | I71: 0 | J71: 0 | K71: 0 | L71: F | M71: Serviço | N71: Serviço | O71: 1.3.2.0.4. | P71: SINAPI | Q71: 92985 | R71: CABO DE COBRE FLEXÍVEL ISOLADO, 35 MM², ANTI-CHAMA 450/750 V, PARA DISTRIBUIÇÃO - FORNECIMENTO E INSTALAÇÃO. AF_12/2015 | S71: M | T71: 276 | U71: 1
A72: S | B72: 3 | C72: S | D72: 0 | E72: 1 | F72: 3 | G72: 2 | H72: 0 | I72: 0 | J72: 0 | K72: 0 | L72: F | M72: Serviço | N72: Serviço | O72: 1.3.2.0.5. | P72: SINAPI | Q72: 92983 | R72: CABO DE COBRE FLEXÍVEL ISOLADO, 25 MM², ANTI-CHAMA 450/750 V, PARA DISTRIBUIÇÃO - FORNECIMENTO E INSTALAÇÃO. AF_12/2015 | S72: M | T72: 69 | U72: 1
A73: S | B73: 3 | C73: S | D73: 0 | E73: 1 | F73: 3 | G73: 2 | H73: 0 | I73: 0 | J73: 0 | K73: 0 | L73: F | M73: Serviço | N73: Serviço | O73: 1.3.2.0.6. | P73: SINAPI | Q73: 91872 | R73: ELETRODUTO RÍGIDO ROSCÁVEL, PVC, DN 32 MM (1"), PARA CIRCUITOS TERMINAIS, INSTALADO EM PAREDE - FORNECIMENTO E INSTALAÇÃO. AF_12/2015 | S73: M | T73: 46 | U73: 1 | AA73: Referência: AGETOP - 71202
A74: S | B74: 3 | C74: S | D74: 0 | E74: 1 | F74: 3 | G74: 2 | H74: 0 | I74: 0 | J74: 0 | K74: 0 | L74: F | M74: Serviço | N74: Serviço | O74: 1.3.2.0.7. | P74: SINAPI | Q74: 93009 | R74: ELETRODUTO RÍGIDO ROSCÁVEL, PVC, DN 60 MM (2") - FORNECIMENTO E INSTALAÇÃO. AF_12/2015 | S74: M | T74: 69 | U74: 1
A75: S | B75: 3 | C75: S | D75: 0 | E75: 1 | F75: 3 | G75: 2 | H75: 0 | I75: 0 | J75: 0 | K75: 0 | L75: F | M75: Serviço | N75: Serviço | O75: 1.3.2.0.8. | P75: AGETOP | Q75: 70352 | R75: BRACADEIRA METALICA TIPO "U" DIAM. 1" | S75: Un | T75: 16 | U75: 1
A76: S | B76: 3 | C76: S | D76: 0 | E76: 1 | F76: 3 | G76: 2 | H76: 0 | I76: 0 | J76: 0 | K76: 0 | L76: F | M76: Serviço | N76: Serviço | O76: 1.3.2.0.9. | P76: AGETOP | Q76: 70355 | R76: BRACADEIRA METALICA TIPO "U" DIAM. 2" | S76: Un | T76: 23 | U76: 1
A77: S | B77: 3 | C77: S | D77: 0 | E77: 1 | F77: 3 | G77: 2 | H77: 0 | I77: 0 | J77: 0 | K77: 0 | L77: F | M77: Serviço | N77: Serviço | O77: 1.3.2.0.10. | P77: SINAPI | Q77: 91880 | R77: LUVA PARA ELETRODUTO, PVC, ROSCÁVEL, DN 32 MM (1"), PARA CIRCUITOS TERMINAIS, INSTALADA EM LAJE - FORNECIMENTO E INSTALAÇÃO. AF_12/2015 | S77: UN | T77: 16 | U77: 1 | AA77: Referência: AGETOP - 71742
A78: S | B78: 3 | C78: S | D78: 0 | E78: 1 | F78: 3 | G78: 2 | H78: 0 | I78: 0 | J78: 0 | K78: 0 | L78: F | M78: Serviço | N78: Serviço | O78: 1.3.2.0.11. | P78: SINAPI | Q78: 93014 | R78: LUVA PARA ELETRODUTO, PVC, ROSCÁVEL, DN 60 MM (2") - FORNECIMENTO E INSTALAÇÃO. AF_12/2015 | S78: UN | T78: 23 | U78: 1 | AA78: Referência: AGETOP - 71745
A79: S | B79: 3 | C79: S | D79: 0 | E79: 1 | F79: 3 | G79: 2 | H79: 0 | I79: 0 | J79: 0 | K79: 0 | L79: F | M79: Serviço | N79: Serviço | O79: 1.3.2.0.12. | P79: SINAPI | Q79: 97889 | R79: CAIXA ENTERRADA ELÉTRICA RETANGULAR, EM ALVENARIA COM TIJOLOS CERÂMICOS MACIÇOS, FUNDO COM BRITA, DIMENSÕES INTERNAS: 0,8X0,8X0,6 M. AF_05/2018 | S79: UN | T79: 1 | U79: 1
A80: S | B80: 3 | C80: S | D80: 0 | E80: 1 | F80: 3 | G80: 2 | H80: 0 | I80: 0 | J80: 0 | K80: 0 | L80: F | M80: Serviço | N80: Serviço | O80: 1.3.2.0.13. | P80: SINAPI | Q80: 6171 | R80: TAMPA DE CONCRETO ARMADO 60X60X5CM PARA CAIXA | S80: UN | T80: 1 | U80: 1
A81: S | B81: 3 | C81: S | D81: 0 | E81: 1 | F81: 3 | G81: 2 | H81: 0 | I81: 0 | J81: 0 | K81: 0 | L81: F | M81: Serviço | N81: Serviço | O81: 1.3.2.0.14. | P81: AGETOP | Q81: 71861 | R81: PARAFUSO P/BUCHA S-6 | S81: Un | T81: 100 | U81: 1
A82: S | B82: 3 | C82: S | D82: 0 | E82: 1 | F82: 3 | G82: 2 | H82: 0 | I82: 0 | J82: 0 | K82: 0 | L82: F | M82: Serviço | N82: Serviço | O82: 1.3.2.0.15. | P82: AGETOP | Q82: 70391 | R82: BUCHA DE NYLON S-6 | S82: Un | T82: 100 | U82: 1
A83: 2 | B83: 2 | C83: 2 | D83: 89 | E83: 1 | F83: 4 | G83: 0 | H83: 0 | I83: 0 | J83: 159 | K83: 89 | L83: F | M83: Nível 2 | N83: Nível 2 | O83: 1.4. | P83: AGETOP | R83: INSTALAÇÕES HIDROSSANITÁRIAS | S83: - | U83: 1
A84: 3 | B84: 3 | C84: 3 | D84: 9 | E84: 1 | F84: 4 | G84: 1 | H84: 0 | I84: 0 | J84: =IF(OR($C84="S",$C84=0),0,MATCH(0,OFFSET($D84,1,$C84,ROW($C$522)-ROW($C84)),0)) -> 88 | K84: =IF(OR($C84="S",$C84=0),0,MATCH(OFFSET($D84,0,$C84)+1,OFFSET($D84,1,$C84,ROW($C$522)-ROW($C84)),0)) -> 9 | L84: F | M84: Nível 3 | N84: Nível 3 | O84: 1.4.1. | P84: SINAPI | R84: PEÇAS E ACESSÓRIOS | S84: - | U84: 1
A85: 4 | B85: 4 | C85: 4 | D85: 6 | E85: 1 | F85: 4 | G85: 1 | H85: 1 | I85: 0 | J85: 8 | K85: 6 | L85: F | M85: Nível 4 | N85: Nível 4 | O85: 1.4.1.1. | P85: SINAPI | R85: PIA / ACESSÓRIOS | S85: - | U85: 1
A86: S | B86: 4 | C86: S | D86: 0 | E86: 1 | F86: 4 | G86: 1 | H86: 1 | I86: 0 | J86: 0 | K86: 0 | L86: F | M86: Serviço | N86: Serviço | O86: 1.4.1.1.1. | P86: AGETOP | Q86: 80660 | R86: TORNEIRA DE PAREDE PARA PIA OU BEBEDOURO DIÂMETRO DE 1/2" E 3/4" | S86: Un | T86: 5 | U86: 1
A87: S | B87: 4 | C87: S | D87: 0 | E87: 1 | F87: 4 | G87: 1 | H87: 1 | I87: 0 | J87: 0 | K87: 0 | L87: F | M87: Serviço | N87: Serviço | O87: 1.4.1.1.2. | P87: AGETOP | Q87: 80671 | R87: SIFAO PVC P/PIA 1.1/2" X 2" | S87: Un | T87: 5 | U87: 1
A88: S | B88: 4 | C88: S | D88: 0 | E88: 1 | F88: 4 | G88: 1 | H88: 1 | I88: 0 | J88: 0 | K88: 0 | L88: F | M88: Serviço | N88: Serviço | O88: 1.4.1.1.3. | P88: AGETOP | Q88: 80680 | R88: VALVULA P/PIA TIPO AMERICANA DIAM.3.1/2" (METAL) | S88: Un | T88: 5 | U88: 1
A89: S | B89: 4 | C89: S | D89: 0 | E89: 1 | F89: 4 | G89: 1 | H89: 1 | I89: 0 | J89: 0 | K89: 0 | L89: F | M89: Serviço | N89: Serviço | O89: 1.4.1.1.4. | P89: AGETOP | Q89: 80686 | R89: CUBA INOX 56X34X17CM E=0,6MM-AÇO 304 (CUBA Nº2) | S89: Un | T89: 3 | U89: 1
A90: S | B90: 4 | C90: S | D90: 0 | E90: 1 | F90: 4 | G90: 1 | H90: 1 | I90: 0 | J90: 0 | K90: 0 | L90: F | M90: Serviço | N90: Serviço | O90: 1.4.1.1.5. | P90: AGETOP | Q90: 80693 | R90: TANQUE (PANELAO) INOX 60 X 70 X 40 CM CH.18 | S90: Un | T90: 2 | U90: 1
A91: 4 | B91: 4 | C91: 4 | D91: 2 | E91: 1 | F91: 4 | G91: 1 | H91: 2 | I91: 0 | J91: 2 | K91: 10 | L91: F | M91: Nível 4 | N91: Nível 4 | O91: 1.4.1.2. | P91: SINAPI | R91: REGISTROS | S91: - | U91: 1
A92: S | B92: 4 | C92: S | D92: 0 | E92: 1 | F92: 4 | G92: 1 | H92: 2 | I92: 0 | J92: 0 | K92: 0 | L92: F | M92: Serviço | N92: Serviço | O92: 1.4.1.2.1. | P92: AGETOP | Q92: 80902 | R92: REGISTRO DE GAVETA BRUTO DIAMETRO 3/4" | S92: Un | T92: 1 | U92: 1
A93: 3 | B93: 3 | C93: 3 | D93: 24 | E93: 1 | F93: 4 | G93: 2 | H93: 0 | I93: 0 | J93: 79 | K93: 24 | L93: F | M93: Nível 3 | N93: Nível 3 | O93: 1.4.2. | P93: SINAPI | R93: ÁGUA FRIA | S93: - | U93: 1
A94: 4 | B94: 4 | C94: 4 | D94: 5 | E94: 1 | F94: 4 | G94: 2 | H94: 1 | I94: 0 | J94: 23 | K94: 5 | L94: F | M94: Nível 4 | N94: Nível 4 | O94: 1.4.2.1. | P94: SINAPI | R94: TUBOS DE PVC SOLDÁVEL | S94: - | U94: 1
A95: S | B95: 4 | C95: S | D95: 0 | E95: 1 | F95: 4 | G95: 2 | H95: 1 | I95: 0 | J95: 0 | K95: 0 | L95: F | M95: Serviço | N95: Serviço | O95: 1.4.2.1.1. | P95: SINAPI | Q95: 89402 | R95: TUBO, PVC, SOLDÁVEL, DN 25MM, INSTALADO EM RAMAL DE DISTRIBUIÇÃO DE ÁGUA - FORNECIMENTO E INSTALAÇÃO. AF_12/2014 | S95: M | T95: 15 | U95: 1 | AA95: Referência: AGETOP - 81003
A96: S | B96: 4 | C96: S | D96: 0 | E96: 1 | F96: 4 | G96: 2 | H96: 1 | I96: 0 | J96: 0 | K96: 0 | L96: F | M96: Serviço | N96: Serviço | O96: 1.4.2.1.2. | P96: SINAPI | Q96: 89447 | R96: TUBO, PVC, SOLDÁVEL, DN 32MM, INSTALADO EM PRUMADA DE ÁGUA - FORNECIMENTO E INSTALAÇÃO. AF_12/2014 | S96: M | T96: 25 | U96: 1
A97: S | B97: 4 | C97: S | D97: 0 | E97: 1 | F97: 4 | G97: 2 | H97: 1 | I97: 0 | J97: 0 | K97: 0 | L97: F | M97: Serviço | N97: Serviço | O97: 1.4.2.1.3. | P97: SINAPI | Q97: 89449 | R97: TUBO, PVC, SOLDÁVEL, DN 50MM, INSTALADO EM PRUMADA DE ÁGUA - FORNECIMENTO E INSTALAÇÃO. AF_12/2014 | S97: M | T97: 25 | U97: 1
A98: S | B98: 4 | C98: S | D98: 0 | E98: 1 | F98: 4 | G98: 2 | H98: 1 | I98: 0 | J98: 0 | K98: 0 | L98: F | M98: Serviço | N98: Serviço | O98: 1.4.2.1.4. | P98: SINAPI | Q98: 89450 | R98: TUBO, PVC, SOLDÁVEL, DN 60MM, INSTALADO EM PRUMADA DE ÁGUA - FORNECIMENTO E INSTALAÇÃO. AF_12/2014 | S98: M | T98: 28 | U98: 1
A99: 4 | B99: 4 | C99: 4 | D99: 2 | E99: 1 | F99: 4 | G99: 2 | H99: 2 | I99: 0 | J99: 18 | K99: 2 | L99: F | M99: Nível 4 | N99: Nível 4 | O99: 1.4.2.2. | P99: SINAPI | R99: ADAPTADORES DE PVC SOLDÁVEL | S99: - | U99: 1
A100: S | B100: 4 | C100: S | D100: 0 | E100: 1 | F100: 4 | G100: 2 | H100: 2 | I100: 0 | J100: 0 | K100: 0 | L100: F | M100: Serviço | N100: Serviço | O100: 1.4.2.2.1. | P100: SINAPI | Q100: 89538 | R100: ADAPTADOR CURTO COM BOLSA E ROSCA PARA REGISTRO, PVC, SOLDÁVEL, DN 25MM X 3/4, INSTALADO EM PRUMADA DE ÁGUA - FORNECIMENTO E INSTALAÇÃO. AF_12/2014 | S100: UN | T100: 2 | U100: 1
A101: 4 | B101: 4 | C101: 4 | D101: 2 | E101: 1 | F101: 4 | G101: 2 | H101: 3 | I101: 0 | J101: 16 | K101: 2 | L101: F | M101: Nível 4 | N101: Nível 4 | O101: 1.4.2.3. | P101: SINAPI | R101: BUCHAS | S101: - | U101: 1
A102: S | B102: 4 | C102: S | D102: 0 | E102: 1 | F102: 4 | G102: 2 | H102: 3 | I102: 0 | J102: 0 | K102: 0 | L102: F | M102: Serviço | N102: Serviço | O102: 1.4.2.3.1. | P102: AGETOP | Q102: 81165 | R102: BUCHA DE REDUCAO SOLD. CURTA 60 X 50 mm | S102: Un | T102: 1 | U102: 1
A103: 4 | B103: 4 | C103: 4 | D103: 6 | E103: 1 | F103: 4 | G103: 2 | H103: 4 | I103: 0 | J103: 14 | K103: 6 | L103: F | M103: Nível 4 | N103: Nível 4 | O103: 1.4.2.4. | P103: SINAPI | R103: JOELHO | S103: - | U103: 1
A104: S | B104: 4 | C104: S | D104: 0 | E104: 1 | F104: 4 | G104: 2 | H104: 4 | I104: 0 | J104: 0 | K104: 0 | L104: F | M104: Serviço | N104: Serviço | O104: 1.4.2.4.1. | P104: SINAPI | Q104: 89481 | R104: JOELHO 90 GRAUS, PVC, SOLDÁVEL, DN 25MM, INSTALADO EM PRUMADA DE ÁGUA - FORNECIMENTO E INSTALAÇÃO. AF_12/2014 | S104: UN | T104: 1 | U104: 1
A105: S | B105: 4 | C105: S | D105: 0 | E105: 1 | F105: 4 | G105: 2 | H105: 4 | I105: 0 | J105: 0 | K105: 0 | L105: F | M105: Serviço | N105: Serviço | O105: 1.4.2.4.2. | P105: SINAPI | Q105: 89413 | R105: JOELHO 90 GRAUS, PVC, SOLDÁVEL, DN 32MM, INSTALADO EM RAMAL DE DISTRIBUIÇÃO DE ÁGUA - FORNECIMENTO E INSTALAÇÃO. AF_12/2014 | S105: UN | T105: 3 | U105: 1 | AA105: Referência: AGETOP - 81322
A106: S | B106: 4 | C106: S | D106: 0 | E106: 1 | F106: 4 | G106: 2 | H106: 4 | I106: 0 | J106: 0 | K106: 0 | L106: F | M106: Serviço | N106: Serviço | O106: 1.4.2.4.3. | P106: SINAPI | Q106: 89501 | R106: JOELHO 90 GRAUS, PVC, SOLDÁVEL, DN 50MM, INSTALADO EM PRUMADA DE ÁGUA - FORNECIMENTO E INSTALAÇÃO. AF_12/2014 | S106: UN | T106: 1 | U106: 1
A107: S | B107: 4 | C107: S | D107: 0 | E107: 1 | F107: 4 | G107: 2 | H107: 4 | I107: 0 | J107: 0 | K107: 0 | L107: F | M107: Serviço | N107: Serviço | O107: 1.4.2.4.4. | P107: SINAPI | Q107: 89505 | R107: JOELHO 90 GRAUS, PVC, SOLDÁVEL, DN 60MM, INSTALADO EM PRUMADA DE ÁGUA - FORNECIMENTO E INSTALAÇÃO. AF_12/2014 | S107: UN | T107: 3 | U107: 1 | AA107: Referência: AGETOP - 81325
A108: S | B108: 4 | C108: S | D108: 0 | E108: 1 | F108: 4 | G108: 2 | H108: 4 | I108: 0 | J108: 0 | K108: 0 | L108: F | M108: Serviço | N108: Serviço | O108: 1.4.2.4.5. | P108: AGETOP | Q108: 81369 | R108: JOELHO 90 GRAUS SOLD. C/BUCHA LATAO 25 X 3/4" | S108: Un | T108: 2 | U108: 1
A109: 4 | B109: 4 | C109: 4 | D109: 5 | E109: 1 | F109: 4 | G109: 2 | H109: 5 | I109: 0 | J109: 8 | K109: 5 | L109: F | M109: Nível 4 | N109: Nível 4 | O109: 1.4.2.5. | P109: SINAPI | R109: TÊ | S109: - | U109: 1
A110: S | B110: 4 | C110: S | D110: 0 | E110: 1 | F110: 4 | G110: 2 | H110: 5 | I110: 0 | J110: 0 | K110: 0 | L110: F | M110: Serviço | N110: Serviço | O110: 1.4.2.5.1. | P110: SINAPI | Q110: 89617 | R110: TE, PVC, SOLDÁVEL, DN 25MM, INSTALADO EM PRUMADA DE ÁGUA - FORNECIMENTO E INSTALAÇÃO. AF_12/2014 | S110: UN | T110: 1 | U110: 1
A111: S | B111: 4 | C111: S | D111: 0 | E111: 1 | F111: 4 | G111: 2 | H111: 5 | I111: 0 | J111: 0 | K111: 0 | L111: F | M111: Serviço | N111: Serviço | O111: 1.4.2.5.2. | P111: AGETOP | Q111: 81444 | R111: TE 90 GR.SOLD.C/BUC.LATAO NA BOLSA CENT.25X25X3/4" | S111: Un | T111: 3 | U111: 1
A112: S | B112: 4 | C112: S | D112: 0 | E112: 1 | F112: 4 | G112: 2 | H112: 5 | I112: 0 | J112: 0 | K112: 0 | L112: F | M112: Serviço | N112: Serviço | O112: 1.4.2.5.3. | P112: AGETOP | Q112: 81425 | R112: TE REDUCAO 90 GRAUS SOLDAVEL 50 X 32 mm | S112: Un | T112: 1 | U112: 1
A113: S | B113: 4 | C113: S | D113: 0 | E113: 1 | F113: 4 | G113: 2 | H113: 5 | I113: 0 | J113: 0 | K113: 0 | L113: F | M113: Serviço | N113: Serviço | O113: 1.4.2.5.4. | P113: AGETOP | Q113: 81406 | R113: TE 90 GRAUS SOLDAVEL DIMETRO 60 mm | S113: Un | T113: 1 | U113: 1
A114: 4 | B114: 4 | C114: 4 | D114: 3 | E114: 1 | F114: 4 | G114: 2 | H114: 6 | I114: 0 | J114: 3 | L114: F | M114: Nível 4 | N114: Nível 4 | O114: 1.4.2.6. | P114: SINAPI | R114: ADESIVOS | S114: - | U114: 1
A115: S | B115: 4 | C115: S | D115: 0 | E115: 1 | F115: 4 | G115: 2 | H115: 6 | I115: 0 | J115: 0 | K115: 0 | L115: F | M115: Serviço | N115: Serviço | O115: 1.4.2.6.1. | P115: AGETOP | Q115: 81501 | R115: ADESIVO PLASTICO - FRASCO 850 G | S115: Un | T115: 1 | U115: 1
A116: S | B116: 4 | C116: S | D116: 0 | E116: 1 | F116: 4 | G116: 2 | H116: 6 | I116: 0 | J116: 0 | K116: 0 | L116: F | M116: Serviço | N116: Serviço | O116: 1.4.2.6.2. | P116: AGETOP | Q116: 81504 | R116: SOLUCAO LIMPADORA 1000 CM3 | S116: Un | T116: 1 | U116: 1
A117: 3 | B117: 3 | C117: 3 | D117: 10 | E117: 1 | F117: 4 | G117: 3 | H117: 0 | I117: 0 | J117: 55 | K117: 10 | L117: F | M117: Nível 3 | N117: Nível 3 | O117: 1.4.3. | P117: SINAPI | R117: ESGOTO SANITÁRIO | S117: - | U117: 1
A118: 4 | B118: 4 | C118: 4 | D118: 2 | E118: 1 | F118: 4 | G118: 3 | H118: 1 | I118: 0 | J118: 9 | K118: 2 | L118: F | M118: Nível 4 | N118: Nível 4 | O118: 1.4.3.1. | P118: SINAPI | R118: CURVAS | S118: - | U118: 1
A119: S | B119: 4 | C119: S | D119: 0 | E119: 1 | F119: 4 | G119: 3 | H119: 1 | I119: 0 | J119: 0 | K119: 0 | L119: F | M119: Serviço | N119: Serviço | O119: 1.4.3.1.1. | P119: AGETOP | Q119: 81550 | R119: CURVA 45º DIAMETRO 50 MM | S119: Un | T119: 2 | U119: 1
A120: 4 | B120: 4 | C120: 4 | D120: 2 | E120: 1 | F120: 4 | G120: 3 | H120: 2 | I120: 0 | J120: 7 | K120: 2 | L120: F | M120: Nível 4 | N120: Nível 4 | O120: 1.4.3.2. | P120: SINAPI | R120: JODELHOS | S120: - | U120: 1
A121: S | B121: 4 | C121: S | D121: 0 | E121: 1 | F121: 4 | G121: 3 | H121: 2 | I121: 0 | J121: 0 | K121: 0 | L121: F | M121: Serviço | N121: Serviço | O121: 1.4.3.2.1. | P121: SINAPI | Q121: 89731 | R121: JOELHO 90 GRAUS, PVC, SERIE NORMAL, ESGOTO PREDIAL, DN 50 MM, JUNTA ELÁSTICA, FORNECIDO E INSTALADO EM RAMAL DE DESCARGA OU RAMAL DE ESGOTO SANITÁRIO. AF_12/2014 | S121: UN | T121: 10 | U121: 1
A122: 4 | B122: 4 | C122: 4 | D122: 2 | E122: 1 | F122: 4 | G122: 3 | H122: 3 | I122: 0 | J122: 5 | K122: 2 | L122: F | M122: Nível 4 | N122: Nível 4 | O122: 1.4.3.3. | P122: SINAPI | R122: JUNÇÕES | S122: - | U122: 1
A123: S | B123: 4 | C123: S | D123: 0 | E123: 1 | F123: 4 | G123: 3 | H123: 3 | I123: 0 | J123: 0 | K123: 0 | L123: F | M123: Serviço | N123: Serviço | O123: 1.4.3.3.1. | P123: AGETOP | Q123: 81970 | R123: JUNCAO SIMPLES DIAMETRO 50 X 50 MM | S123: Un | T123: 1 | U123: 1
A124: 4 | B124: 4 | C124: 4 | D124: 3 | E124: 1 | F124: 4 | G124: 3 | H124: 4 | I124: 0 | J124: 3 | L124: F | M124: Nível 4 | N124: Nível 4 | O124: 1.4.3.4. | P124: SINAPI | R124: TUBOS | S124: - | U124: 1
A125: S | B125: 4 | C125: S | D125: 0 | E125: 1 | F125: 4 | G125: 3 | H125: 4 | I125: 0 | J125: 0 | K125: 0 | L125: F | M125: Serviço | N125: Serviço | O125: 1.4.3.4.1. | P125: SINAPI | Q125: 89798 | R125: TUBO PVC, SERIE NORMAL, ESGOTO PREDIAL, DN 50 MM, FORNECIDO E INSTALADO EM PRUMADA DE ESGOTO SANITÁRIO OU VENTILAÇÃO. AF_12/2014 | S125: M | T125: 20 | U125: 1
A126: S | B126: 4 | C126: S | D126: 0 | E126: 1 | F126: 4 | G126: 3 | H126: 4 | I126: 0 | J126: 0 | K126: 0 | L126: F | M126: Serviço | N126: Serviço | O126: 1.4.3.4.2. | P126: SINAPI | Q126: 89800 | R126: TUBO PVC, SERIE NORMAL, ESGOTO PREDIAL, DN 100 MM, FORNECIDO E INSTALADO EM PRUMADA DE ESGOTO SANITÁRIO OU VENTILAÇÃO. AF_12/2014 | S126: M | T126: 70 | U126: 1
A127: 3 | B127: 3 | C127: 3 | D127: 4 | E127: 1 | F127: 4 | G127: 4 | H127: 0 | I127: 0 | J127: 45 | K127: 4 | L127: F | M127: Nível 3 | N127: Nível 3 | O127: 1.4.4. | P127: SINAPI | R127: OUTROS | S127: - | U127: 1
A128: S | B128: 3 | C128: S | D128: 0 | E128: 1 | F128: 4 | G128: 4 | H128: 0 | I128: 0 | J128: 0 | K128: 0 | L128: F | M128: Serviço | N128: Serviço | O128: 1.4.4.0.1. | P128: AGETOP | Q128: 81825 | R128: CAIXA DE PASSAGEM 60 X 60 CM SEM TAMPA | S128: Un | T128: 2 | U128: 1
A129: S | B129: 3 | C129: S | D129: 0 | E129: 1 | F129: 4 | G129: 4 | H129: 0 | I129: 0 | J129: 0 | K129: 0 | L129: F | M129: Serviço | N129: Serviço | O129: 1.4.4.0.2. | P129: AGETOP | Q129: 81826 | R129: TAMPA EM CONCRETO ARMADO 25 MPA E=5CM PARA A CAIXA DE PASSAGEM 60X60CM | S129: Un | T129: 2 | U129: 1
A130: S | B130: 3 | C130: S | D130: 0 | E130: 1 | F130: 4 | G130: 4 | H130: 0 | I130: 0 | J130: 0 | K130: 0 | L130: F | M130: Serviço | N130: Serviço | O130: 1.4.4.0.3. | P130: AGETOP | Q130: 81854 | R130: CAIXA DE GORDURA 600 L. CONCRETO PADRÃO AGETOP IMPERMEABILIZADA | S130: un | T130: 2 | U130: 1
A131: 3 | B131: 3 | C131: 3 | D131: 41 | E131: 1 | F131: 4 | G131: 5 | H131: 0 | I131: 0 | J131: 41 | L131: F | M131: Nível 3 | N131: Nível 3 | O131: 1.4.5. | P131: SINAPI | R131: INSTALAÇÕES DE INCÊNDIO | S131: - | U131: 1
A132: S | B132: 3 | C132: S | D132: 0 | E132: 1 | F132: 4 | G132: 5 | H132: 0 | I132: 0 | J132: 0 | K132: 0 | L132: F | M132: Serviço | N132: Serviço | O132: 1.4.5.0.1. | P132: SINAPI | Q132: 83644 | R132: BOMBA RECALQUE D'AGUA TRIFASICA 10,0 HP | S132: UN | T132: 1 | U132: 1
A133: S | B133: 3 | C133: S | D133: 0 | E133: 1 | F133: 4 | G133: 5 | H133: 0 | I133: 0 | J133: 0 | K133: 0 | L133: F | M133: Serviço | N133: Serviço | O133: 1.4.5.0.2. | P133: AGETOP | Q133: 72338 | R133: SIRENE METALICA ALCANCE 500 M | S133: Un | T133: 2 | U133: 1
A134: S | B134: 3 | C134: S | D134: 0 | E134: 1 | F134: 4 | G134: 5 | H134: 0 | I134: 0 | J134: 0 | K134: 0 | L134: F | M134: Serviço | N134: Serviço | O134: 1.4.5.0.3. | P134: AGETOP | Q134: 71156 | R134: CURVA DE 90 GRAUS AÇO GALVANIZADO DIAM. 2.1/2" | S134: Un | T134: 1 | U134: 1
A135: S | B135: 3 | C135: S | D135: 0 | E135: 1 | F135: 4 | G135: 5 | H135: 0 | I135: 0 | J135: 0 | K135: 0 | L135: F | M135: Serviço | N135: Serviço | O135: 1.4.5.0.4. | P135: AGETOP | Q135: 80910 | R135: REGISTRO DE GAVETA BRUTO DIAMETRO 2.1/2" | S135: Un | T135: 2 | U135: 1
A136: S | B136: 3 | C136: S | D136: 0 | E136: 1 | F136: 4 | G136: 5 | H136: 0 | I136: 0 | J136: 0 | K136: 0 | L136: F | M136: Serviço | N136: Serviço | O136: 1.4.5.0.5. | P136: AGETOP | Q136: 82379 | R136: TUBO FERRO GALVANIZADO DIAM.2.1/2" | S136: m | T136: 330 | U136: 1
A137: S | B137: 3 | C137: S | D137: 0 | E137: 1 | F137: 4 | G137: 5 | H137: 0 | I137: 0 | J137: 0 | K137: 0 | L137: F | M137: Serviço | N137: Serviço | O137: 1.4.5.0.6. | P137: AGETOP | Q137: 85003 | R137: EXTINTOR PO QUIMICO SECO (6 KG) - CAPACIDADE EXTINTORA 20 BC | S137: Un | T137: 2 | U137: 1
A138: S | B138: 3 | C138: S | D138: 0 | E138: 1 | F138: 4 | G138: 5 | H138: 0 | I138: 0 | J138: 0 | K138: 0 | L138: F | M138: Serviço | N138: Serviço | O138: 1.4.5.0.7. | P138: AGETOP | Q138: 85006 | R138: EXTINTOR MULTI USO EM PO A B C (6 KG) - CAPACIDADE EXTINTORA 3A 20BC | S138: un | T138: 4 | U138: 1
A139: S | B139: 3 | C139: S | D139: 0 | E139: 1 | F139: 4 | G139: 5 | H139: 0 | I139: 0 | J139: 0 | K139: 0 | L139: F | M139: Serviço | N139: Serviço | O139: 1.4.5.0.8. | P139: AGETOP | Q139: 85011 | R139: CAIXA DE INCÊNDIO METÁLICA COM SUPORTE PARA MANGUEIRA, TAMPA E MURETA 17X60X90 CM C/PINTURA | S139: Un | T139: 6 | U139: 1
A140: S | B140: 3 | C140: S | D140: 0 | E140: 1 | F140: 4 | G140: 5 | H140: 0 | I140: 0 | J140: 0 | K140: 0 | L140: F | M140: Serviço | N140: Serviço | O140: 1.4.5.0.9. | P140: AGETOP | Q140: 85017 | R140: MANGUEIRA DE INCÊNDIO D.I. = 38 MM TIPO 2 COMP. = 15 M | S140: CJ | T140: 12 | U140: 1
A141: S | B141: 3 | C141: S | D141: 0 | E141: 1 | F141: 4 | G141: 5 | H141: 0 | I141: 0 | J141: 0 | K141: 0 | L141: F | M141: Serviço | N141: Serviço | O141: 1.4.5.0.10. | P141: AGETOP | Q141: 85025 | R141: ESGUICHO REGULÁVEL 1.1/2" | S141: Un | T141: 6 | U141: 1
A142: S | B142: 3 | C142: S | D142: 0 | E142: 1 | F142: 4 | G142: 5 | H142: 0 | I142: 0 | J142: 0 | K142: 0 | L142: F | M142: Serviço | N142: Serviço | O142: 1.4.5.0.11. | P142: AGETOP | Q142: 85027 | R142: ADAPTADOR P/ENGATE STORZ 2.1/2" X 1.1/2" | S142: Un | T142: 7 | U142: 1
A143: S | B143: 3 | C143: S | D143: 0 | E143: 1 | F143: 4 | G143: 5 | H143: 0 | I143: 0 | J143: 0 | K143: 0 | L143: F | M143: Serviço | N143: Serviço | O143: 1.4.5.0.12. | P143: AGETOP | Q143: 85031 | R143: REGISTRO GLOBO ANGULAR 2.1/2" | S143: Un | T143: 6 | U143: 1
A144: S | B144: 3 | C144: S | D144: 0 | E144: 1 | F144: 4 | G144: 5 | H144: 0 | I144: 0 | J144: 0 | K144: 0 | L144: F | M144: Serviço | N144: Serviço | O144: 1.4.5.0.13. | P144: AGETOP | Q144: 85035 | R144: TAMPÃO CEGO COM CORRENTE 2.1/2" | S144: Un | T144: 7 | U144: 1
A145: S | B145: 3 | C145: S | D145: 0 | E145: 1 | F145: 4 | G145: 5 | H145: 0 | I145: 0 | J145: 0 | K145: 0 | L145: F | M145: Serviço | N145: Serviço | O145: 1.4.5.0.14. | P145: AGETOP | Q145: 85037 | R145: TANQUE DE PRESSÃO DE 10 L | S145: Un | T145: 1 | U145: 1
A146: S | B146: 3 | C146: S | D146: 0 | E146: 1 | F146: 4 | G146: 5 | H146: 0 | I146: 0 | J146: 0 | K146: 0 | L146: F | M146: Serviço | N146: Serviço | O146: 1.4.5.0.15. | P146: AGETOP | Q146: 85039 | R146: PRESSOSTATO 50 A 80 PSI | S146: Un | T146: 1 | U146: 1
A147: S | B147: 3 | C147: S | D147: 0 | E147: 1 | F147: 4 | G147: 5 | H147: 0 | I147: 0 | J147: 0 | K147: 0 | L147: F | M147: Serviço | N147: Serviço | O147: 1.4.5.0.16. | P147: AGETOP | Q147: 85041 | R147: MANOMETRO - 0 A 10 KG/CM2 | S147: Un | T147: 1 | U147: 1
A148: S | B148: 3 | C148: S | D148: 0 | E148: 1 | F148: 4 | G148: 5 | H148: 0 | I148: 0 | J148: =IF(OR($C148="S",$C148=0),0,MATCH(0,OFFSET($D148,1,$C148,ROW($C$522)-ROW($C148)),0)) -> 0 | K148: =IF(OR($C148="S",$C148=0),0,MATCH(OFFSET($D148,0,$C148)+1,OFFSET($D148,1,$C148,ROW($C$522)-ROW($C148)),0)) -> 0 | L148: F | M148: Serviço | N148: Serviço | O148: 1.4.5.0.17. | P148: AGETOP | Q148: 85047 | R148: NIPLE DUPLO FERRO GALVANIZADO 2.1/2" | S148: Un | T148: 5 | U148: 1
A149: S | B149: 3 | C149: S | D149: 0 | E149: 1 | F149: 4 | G149: 5 | H149: 0 | I149: 0 | J149: 0 | K149: 0 | L149: F | M149: Serviço | N149: Serviço | O149: 1.4.5.0.18. | P149: SINAPI | Q149: 92377 | R149: NIPLE, EM FERRO GALVANIZADO, DN 65 (2 1/2"), CONEXÃO ROSQUEADA, INSTALADO EM REDE DE ALIMENTAÇÃO PARA HIDRANTE - FORNECIMENTO E INSTALAÇÃO. AF_12/2015 | S149: UN | T149: 6 | U149: 1
A150: S | B150: 3 | C150: S | D150: 0 | E150: 1 | F150: 4 | G150: 5 | H150: 0 | I150: 0 | J150: 0 | K150: 0 | L150: F | M150: Serviço | N150: Serviço | O150: 1.4.5.0.19. | P150: AGETOP | Q150: 85077 | R150: VÁLVULA DE RETENÇÃO HORIZONTAL 2.1/2" | S150: Un | T150: 2 | U150: 1
A151: S | B151: 3 | C151: S | D151: 0 | E151: 1 | F151: 4 | G151: 5 | H151: 0 | I151: 0 | J151: 0 | K151: 0 | L151: F | M151: Serviço | N151: Serviço | O151: 1.4.5.0.20. | P151: COMPOSIÇÃO | Q151: COMP 017_SEE | R151: REDUCAO GIRATÓRIA TIPO STORZ LATAO P/ INST. PREDIAL COMBATE A INCENDIO ENGATE RAPIDO 2.1/2" X 1.1/2" | S151: UN | T151: 6 | U151: 1
A152: S | B152: 3 | C152: S | D152: 0 | E152: 1 | F152: 4 | G152: 5 | H152: 0 | I152: 0 | J152: 0 | K152: 0 | L152: F | M152: Serviço | N152: Serviço | O152: 1.4.5.0.21. | P152: COMPOSIÇÃO | Q152: COMP 018_SEE | R152: CHAVE DUPLA P/ CONEXÕES TIPO STORZ EM LATÃO ENGATE RÁPIDO 1 1/2" X 2 1/2" | S152: UN | T152: 6 | U152: 1
A153: S | B153: 3 | C153: S | D153: 0 | E153: 1 | F153: 4 | G153: 5 | H153: 0 | I153: 0 | J153: 0 | K153: 0 | L153: F | M153: Serviço | N153: Serviço | O153: 1.4.5.0.22. | P153: AGETOP | Q153: 80981 | R153: REGISTRO DE ESFERA DIAMETRO 2.1/2" | S153: Un | T153: 1 | U153: 1
A154: S | B154: 3 | C154: S | D154: 0 | E154: 1 | F154: 4 | G154: 5 | H154: 0 | I154: 0 | J154: 0 | K154: 0 | L154: F | M154: Serviço | N154: Serviço | O154: 1.4.5.0.23. | P154: COMPOSIÇÃO | Q154: COMP 087_SEE | R154: REGISTRO DE GAVETA COM HASTE ASCENDENTE DE BRONZE 2 1/2" | S154: UN | T154: 1 | U154: 1
A155: S | B155: 3 | C155: S | D155: 0 | E155: 1 | F155: 4 | G155: 5 | H155: 0 | I155: 0 | J155: 0 | K155: 0 | L155: F | M155: Serviço | N155: Serviço | O155: 1.4.5.0.24. | P155: AGETOP | Q155: 85056 | R155: TÊ DE FERRO GALVANIZADO 90º X 2 1/2" | S155: un | T155: 9 | U155: 1
A156: S | B156: 3 | C156: S | D156: 0 | E156: 1 | F156: 4 | G156: 5 | H156: 0 | I156: 0 | J156: 0 | K156: 0 | L156: F | M156: Serviço | N156: Serviço | O156: 1.4.5.0.25. | P156: COMPOSIÇÃO | Q156: COMP 030_SEE | R156: COTOVELO DE FERRO GALV. 90° X 2 1/2" | S156: UN | T156: 21 | U156: 1
A157: S | B157: 3 | C157: S | D157: 0 | E157: 1 | F157: 4 | G157: 5 | H157: 0 | I157: 0 | J157: 0 | K157: 0 | L157: F | M157: Serviço | N157: Serviço | O157: 1.4.5.0.26. | P157: COMPOSIÇÃO | Q157: COMP 077_SEE | R157: UNIAO FERRO GALV C/ASSENTO CONICO BRONZE 2 1/2" | S157: UN | T157: 6 | U157: 1
A158: S | B158: 3 | C158: S | D158: 0 | E158: 1 | F158: 4 | G158: 5 | H158: 0 | I158: 0 | J158: 0 | K158: 0 | L158: F | M158: Serviço | N158: Serviço | O158: 1.4.5.0.27. | P158: COMPOSIÇÃO | Q158: COMP 347_SEE | R158: ADAPTADOR PVC SOLDAVEL, COM FLANGES LIVRES, 75 MM X 2 1/2", PARA CAIXA D' AGUA | S158: UN | T158: 1 | U158: 1
A159: S | B159: 3 | C159: S | D159: 0 | E159: 1 | F159: 4 | G159: 5 | H159: 0 | I159: 0 | J159: 0 | K159: 0 | L159: F | M159: Serviço | N159: Serviço | O159: 1.4.5.0.28. | P159: COMPOSIÇÃO | Q159: COMP 022_SEE | R159: TAMPÃO FOFO 40X50CM C/INSCRIÇÃO | S159: UN | T159: 1 | U159: 1
A160: S | B160: 3 | C160: S | D160: 0 | E160: 1 | F160: 4 | G160: 5 | H160: 0 | I160: 0 | J160: 0 | K160: 0 | L160: F | M160: Serviço | N160: Serviço | O160: 1.4.5.0.29. | P160: COMPOSIÇÃO | Q160: COMP 546_SEE | R160: BUJÃO DE REBORDO 2.1/2" | S160: UN | T160: 1 | U160: 1
A161: S | B161: 3 | C161: S | D161: 0 | E161: 1 | F161: 4 | G161: 5 | H161: 0 | I161: 0 | J161: 0 | K161: 0 | L161: F | M161: Serviço | N161: Serviço | O161: 1.4.5.0.30. | P161: COMPOSIÇÃO | Q161: COMP 186_SEE | R161: BOTOEIRA BOMBA DE INCÊNDIO C/ MARTELO CONVENCIONAL/ ANALÓGICA | S161: UN | T161: 1 | U161: 1
A162: S | B162: 3 | C162: S | D162: 0 | E162: 1 | F162: 4 | G162: 5 | H162: 0 | I162: 0 | J162: 0 | K162: 0 | L162: F | M162: Serviço | N162: Serviço | O162: 1.4.5.0.31. | P162: COMPOSIÇÃO | Q162: COMP 188_SEE | R162: ACIONADOR MANUAL DE ALARME | S162: UN | T162: 6 | U162: 1
A163: S | B163: 3 | C163: S | D163: 0 | E163: 1 | F163: 4 | G163: 5 | H163: 0 | I163: 0 | J163: 0 | K163: 0 | L163: F | M163: Serviço | N163: Serviço | O163: 1.4.5.0.32. | P163: COMPOSIÇÃO | Q163: COMP 190_SEE | R163: CENTRAL DE DETECÇÃO E ALARME DE 40 SETORES COM BATERIA | S163: UN | T163: 1 | U163: 1
A164: S | B164: 3 | C164: S | D164: 0 | E164: 1 | F164: 4 | G164: 5 | H164: 0 | I164: 0 | J164: 0 | K164: 0 | L164: F | M164: Serviço | N164: Serviço | O164: 1.4.5.0.33. | P164: SINAPI | Q164: 97599 | R164: LUMINÁRIA DE EMERGÊNCIA - FORNECIMENTO E INSTALAÇÃO. AF_11/2017 | S164: UN | T164: 28 | U164: 1
A165: S | B165: 3 | C165: S | D165: 0 | E165: 1 | F165: 4 | G165: 5 | H165: 0 | I165: 0 | J165: 0 | K165: 0 | L165: F | M165: Serviço | N165: Serviço | O165: 1.4.5.0.34. | P165: COMPOSIÇÃO | Q165: COMP 024_SEE | R165: SINALIZADOR FOTOLUMINESCENTE PARA EXTINTOR | S165: UN | T165: 6 | U165: 1
A166: S | B166: 3 | C166: S | D166: 0 | E166: 1 | F166: 4 | G166: 5 | H166: 0 | I166: 0 | J166: 0 | K166: 0 | L166: F | M166: Serviço | N166: Serviço | O166: 1.4.5.0.35. | P166: COMPOSIÇÃO | Q166: COMP 025_SEE | R166: SINALIZADOR FOTOLUMINESCENTE DE EMERGÊNCIA | S166: UN | T166: 28 | U166: 1
A167: S | B167: 3 | C167: S | D167: 0 | E167: 1 | F167: 4 | G167: 5 | H167: 0 | I167: 0 | J167: 0 | K167: 0 | L167: F | M167: Serviço | N167: Serviço | O167: 1.4.5.0.36. | P167: COMPOSIÇÃO | Q167: COMP 277_SEE | R167: MARCAÇÃO NO PISO - 1X1 M PARA EXTINTOR | S167: M2 | T167: 6 | U167: 1
A168: S | B168: 3 | C168: S | D168: 0 | E168: 1 | F168: 4 | G168: 5 | H168: 0 | I168: 0 | J168: 0 | K168: 0 | L168: F | M168: Serviço | N168: Serviço | O168: 1.4.5.0.37. | P168: COMPOSIÇÃO | Q168: COMP 235_SEE | R168: PLACA DE SINALIZAÇÃO EM PVC COD 01 - (300X300) PROIBIDO FUMAR | S168: UN | T168: 1 | U168: 1
A169: S | B169: 3 | C169: S | D169: 0 | E169: 1 | F169: 4 | G169: 5 | H169: 0 | I169: 0 | J169: 0 | K169: 0 | L169: F | M169: Serviço | N169: Serviço | O169: 1.4.5.0.38. | P169: COMPOSIÇÃO | Q169: COMP 236_SEE | R169: PLACA DE SINALIZAÇÃO EM PVC COD 06 - (300X300) PERIGO INFLAMÁVEL | S169: UN | T169: 1 | U169: 1
A170: S | B170: 3 | C170: S | D170: 0 | E170: 1 | F170: 4 | G170: 5 | H170: 0 | I170: 0 | J170: 0 | K170: 0 | L170: F | M170: Serviço | N170: Serviço | O170: 1.4.5.0.39. | P170: COMPOSIÇÃO | Q170: COMP 411_SEE | R170: PLACA DE SINALIZAÇÃO EM PVC COD 13 - (316X158) SAÍDA DE EMERGÊNCIA | S170: UN | T170: 1 | U170: 1
A171: S | B171: 3 | C171: S | D171: 0 | E171: 1 | F171: 4 | G171: 5 | H171: 0 | I171: 0 | J171: 0 | K171: 0 | L171: F | M171: Serviço | N171: Serviço | O171: 1.4.5.0.40. | P171: COMPOSIÇÃO | Q171: COMP 412_SEE | R171: PLACA DE SINALIZAÇÃO EM PVC COD 17 - (316X158) MENSAGEM "SAÍDA" | S171: UN | T171: 3 | U171: 1
A172: 2 | B172: 2 | C172: 2 | D172: 27 | E172: 1 | F172: 5 | G172: 0 | H172: 0 | I172: 0 | J172: 70 | K172: 27 | L172: F | M172: Nível 2 | N172: Nível 2 | O172: 1.5. | R172: INSTALAÇÕES ESPECIAIS | S172: - | U172: 1
A173: S | B173: 2 | C173: S | D173: 0 | E173: 1 | F173: 5 | G173: 0 | H173: 0 | I173: 0 | J173: 0 | K173: 0 | L173: F | M173: Serviço | N173: Serviço | O173: 1.5.0.0.1. | P173: AGETOP | Q173: 91007 | R173: CENTRAL DE GÁS PADRÃO AGETOP SEM INSTALAÇÕES (1+1 CILINDRO 45 KG) | S173: Un | T173: 1 | U173: 1
A174: S | B174: 2 | C174: S | D174: 0 | E174: 1 | F174: 5 | G174: 0 | H174: 0 | I174: 0 | J174: 0 | K174: 0 | L174: F | M174: Serviço | N174: Serviço | O174: 1.5.0.0.2. | P174: AGETOP | Q174: 91023 | R174: UNIÃO S/BRONZE PRETA 3/4" NPT 300 LBS | S174: Un | T174: 3 | U174: 1
A175: S | B175: 2 | C175: S | D175: 0 | E175: 1 | F175: 5 | G175: 0 | H175: 0 | I175: 0 | J175: 0 | K175: 0 | L175: F | M175: Serviço | N175: Serviço | O175: 1.5.0.0.3. | P175: COMPOSIÇÃO | Q175: COMP 382_SEE | R175: TE DE REDUCAO DE FERRO GALVANIZADO, COM ROSCA BSP, DE 3/4" X 1/2" | S175: UN | T175: 1 | U175: 1
A176: S | B176: 2 | C176: S | D176: 0 | E176: 1 | F176: 5 | G176: 0 | H176: 0 | I176: 0 | J176: 0 | K176: 0 | L176: F | M176: Serviço | N176: Serviço | O176: 1.5.0.0.4. | P176: COMPOSIÇÃO | Q176: COMP 383_SEE | R176: BUCHA DE REDUCAO DE FERRO GALVANIZADO, COM ROSCA BSP, DE 1/2" X 1/4" | S176: UN | T176: 3 | U176: 1
A177: S | B177: 2 | C177: S | D177: 0 | E177: 1 | F177: 5 | G177: 0 | H177: 0 | I177: 0 | J177: 0 | K177: 0 | L177: F | M177: Serviço | N177: Serviço | O177: 1.5.0.0.5. | P177: AGETOP | Q177: 91021 | R177: LUVA GALVANIZADO DE REDUÇÃO 3/4" X 1/2" (GÁS) | S177: Un | T177: 2 | U177: 1
A178: S | B178: 2 | C178: S | D178: 0 | E178: 1 | F178: 5 | G178: 0 | H178: 0 | I178: 0 | J178: 0 | K178: 0 | L178: F | M178: Serviço | N178: Serviço | O178: 1.5.0.0.6. | P178: SINAPI | Q178: 92692 | R178: NIPLE, EM FERRO GALVANIZADO, CONEXÃO ROSQUEADA, DN 15 (1/2"), INSTALADO EM RAMAIS E SUB-RAMAIS DE GÁS - FORNECIMENTO E INSTALAÇÃO. AF_12/2015 | S178: UN | T178: 6 | U178: 1
A179: S | B179: 2 | C179: S | D179: 0 | E179: 1 | F179: 5 | G179: 0 | H179: 0 | I179: 0 | J179: 0 | K179: 0 | L179: F | M179: Serviço | N179: Serviço | O179: 1.5.0.0.7. | P179: AGETOP | Q179: 91031 | R179: NIPLE DUPLO 300 PSI 3/4" | S179: Un | T179: 6 | U179: 1
A180: S | B180: 2 | C180: S | D180: 0 | E180: 1 | F180: 5 | G180: 0 | H180: 0 | I180: 0 | J180: 0 | K180: 0 | L180: F | M180: Serviço | N180: Serviço | O180: 1.5.0.0.8. | P180: COMPOSIÇÃO | Q180: COMP 212_SEE | R180: NIPLE DE REDUÇÃO 1/2" X 1/4" BSP | S180: UN | T180: 4 | U180: 1
A181: S | B181: 2 | C181: S | D181: 0 | E181: 1 | F181: 5 | G181: 0 | H181: 0 | I181: 0 | J181: 0 | K181: 0 | L181: F | M181: Serviço | N181: Serviço | O181: 1.5.0.0.9. | P181: COMPOSIÇÃO | Q181: COMP 213_SEE | R181: NIPLE DE REDUÇÃO 3/4" X 1/2" BSP | S181: UN | T181: 4 | U181: 1
A182: S | B182: 2 | C182: S | D182: 0 | E182: 1 | F182: 5 | G182: 0 | H182: 0 | I182: 0 | J182: 0 | K182: 0 | L182: F | M182: Serviço | N182: Serviço | O182: 1.5.0.0.10. | P182: SINAPI | Q182: 92688 | R182: TUBO DE AÇO GALVANIZADO COM COSTURA, CLASSE MÉDIA, CONEXÃO ROSQUEADA, DN 20 (3/4"), INSTALADO EM RAMAIS E SUB-RAMAIS DE GÁS - FORNECIMENTO E INSTALAÇÃO. AF_12/2015 | S182: M | T182: 12 | U182: 1
A183: S | B183: 2 | C183: S | D183: 0 | E183: 1 | F183: 5 | G183: 0 | H183: 0 | I183: 0 | J183: 0 | K183: 0 | L183: F | M183: Serviço | N183: Serviço | O183: 1.5.0.0.11. | P183: SINAPI | Q183: 92701 | R183: JOELHO 90 GRAUS, EM FERRO GALVANIZADO, CONEXÃO ROSQUEADA, DN 20 (3/4"), INSTALADO EM RAMAIS E SUB-RAMAIS DE GÁS - FORNECIMENTO E INSTALAÇÃO. AF_12/2015 | S183: UN | T183: 8 | U183: 1
A184: S | B184: 2 | C184: S | D184: 0 | E184: 1 | F184: 5 | G184: 0 | H184: 0 | I184: 0 | J184: 0 | K184: 0 | L184: F | M184: Serviço | N184: Serviço | O184: 1.5.0.0.12. | P184: COMPOSIÇÃO | Q184: COMP 237_SEE | R184: FITA ANTICORROSIVA | S184: M | T184: 9 | U184: 1
A185: S | B185: 2 | C185: S | D185: 0 | E185: 1 | F185: 5 | G185: 0 | H185: 0 | I185: 0 | J185: 0 | K185: 0 | L185: F | M185: Serviço | N185: Serviço | O185: 1.5.0.0.13. | P185: AGETOP | Q185: 91025 | R185: VÁLVULA ESFERICA LATÃO 3/4" | S185: Un | T185: 3 | U185: 1
A186: S | B186: 2 | C186: S | D186: 0 | E186: 1 | F186: 5 | G186: 0 | H186: 0 | I186: 0 | J186: 0 | K186: 0 | L186: F | M186: Serviço | N186: Serviço | O186: 1.5.0.0.14. | P186: AGETOP | Q186: 91019 | R186: TE PRETO 90º 3/4" NPT 300 LBS | S186: Un | T186: 1 | U186: 1
A187: S | B187: 2 | C187: S | D187: 0 | E187: 1 | F187: 5 | G187: 0 | H187: 0 | I187: 0 | J187: 0 | K187: 0 | L187: F | M187: Serviço | N187: Serviço | O187: 1.5.0.0.15. | P187: COMPOSIÇÃO | Q187: COMP 542_SEE | R187: VÁLVULA UGV 3/4" (S) LATÃO | S187: UN | T187: 4 | U187: 1
A188: S | B188: 2 | C188: S | D188: 0 | E188: 1 | F188: 5 | G188: 0 | H188: 0 | I188: 0 | J188: 0 | K188: 0 | L188: F | M188: Serviço | N188: Serviço | O188: 1.5.0.0.16. | P188: COMPOSIÇÃO | Q188: COMP 543_SEE | R188: VÁLVULA UGV 1/2" (S) LATÃO | S188: UN | T188: 4 | U188: 1
A189: S | B189: 2 | C189: S | D189: 0 | E189: 1 | F189: 5 | G189: 0 | H189: 0 | I189: 0 | J189: 0 | K189: 0 | L189: F | M189: Serviço | N189: Serviço | O189: 1.5.0.0.17. | P189: AGETOP | Q189: 91029 | R189: VALVULA DE RETENÇÃO LATÃO 1/2" X 7/16" NPT | S189: Un | T189: 4 | U189: 1
A190: S | B190: 2 | C190: S | D190: 0 | E190: 1 | F190: 5 | G190: 0 | H190: 0 | I190: 0 | J190: 0 | K190: 0 | L190: F | M190: Serviço | N190: Serviço | O190: 1.5.0.0.18. | P190: COMPOSIÇÃO | Q190: COMP 211_SEE | R190: REGULADOR DE 2º ESTÁGIO 5KG/H | S190: UN | T190: 4 | U190: 1
A191: S | B191: 2 | C191: S | D191: 0 | E191: 1 | F191: 5 | G191: 0 | H191: 0 | I191: 0 | J191: 0 | K191: 0 | L191: F | M191: Serviço | N191: Serviço | O191: 1.5.0.0.19. | P191: COMPOSIÇÃO | Q191: COMP 210_SEE | R191: REGULADOR DE 1º ESTÁGIO 60KG/H MODELO AP-40 COM MANÔMETRO | S191: UN | T191: 1 | U191: 1
A192: S | B192: 2 | C192: S | D192: 0 | E192: 1 | F192: 5 | G192: 0 | H192: 0 | I192: 0 | J192: 0 | K192: 0 | L192: F | M192: Serviço | N192: Serviço | O192: 1.5.0.0.20. | P192: AGETOP | Q192: 85003 | R192: EXTINTOR PO QUIMICO SECO (6 KG) - CAPACIDADE EXTINTORA 20 BC | S192: Un | T192: 1 | U192: 1
A193: S | B193: 2 | C193: S | D193: 0 | E193: 1 | F193: 5 | G193: 0 | H193: 0 | I193: 0 | J193: 0 | K193: 0 | L193: F | M193: Serviço | N193: Serviço | O193: 1.5.0.0.21. | P193: COMPOSIÇÃO | Q193: COMP 235_SEE | R193: PLACA DE SINALIZAÇÃO EM PVC COD 01 - (300X300) PROIBIDO FUMAR | S193: UN | T193: 2 | U193: 1
A194: S | B194: 2 | C194: S | D194: 0 | E194: 1 | F194: 5 | G194: 0 | H194: 0 | I194: 0 | J194: 0 | K194: 0 | L194: F | M194: Serviço | N194: Serviço | O194: 1.5.0.0.22. | P194: COMPOSIÇÃO | Q194: COMP 236_SEE | R194: PLACA DE SINALIZAÇÃO EM PVC COD 06 - (300X300) PERIGO INFLAMÁVEL | S194: UN | T194: 2 | U194: 1
A195: S | B195: 2 | C195: S | D195: 0 | E195: 1 | F195: 5 | G195: 0 | H195: 0 | I195: 0 | J195: 0 | K195: 0 | L195: F | M195: Serviço | N195: Serviço | O195: 1.5.0.0.23. | P195: AGETOP | Q195: 91043 | R195: BRAÇADEIRA METALICA TIPO "D" DIAM. 3/4" | S195: Un | T195: 6 | U195: 1
A196: S | B196: 2 | C196: S | D196: 0 | E196: 1 | F196: 5 | G196: 0 | H196: 0 | I196: 0 | J196: 0 | K196: 0 | L196: F | M196: Serviço | N196: Serviço | O196: 1.5.0.0.24. | P196: AGETOP | Q196: 71863 | R196: PARAFUSO P/BUCHA S-10 | S196: Un | T196: 12 | U196: 1
A197: S | B197: 2 | C197: S | D197: 0 | E197: 1 | F197: 5 | G197: 0 | H197: 0 | I197: 0 | J197: 0 | K197: 0 | L197: F | M197: Serviço | N197: Serviço | O197: 1.5.0.0.25. | P197: AGETOP | Q197: 70393 | R197: BUCHA DE NYLON S-10 | S197: Un | T197: 12 | U197: 1
A198: S | B198: 2 | C198: S | D198: 0 | E198: 1 | F198: 5 | G198: 0 | H198: 0 | I198: 0 | J198: 0 | K198: 0 | L198: F | M198: Serviço | N198: Serviço | O198: 1.5.0.0.26. | P198: AGETOP | Q198: 91045 | R198: SUPORTE PARA COLETOR | S198: Un | T198: 2 | U198: 1
A199: 2 | B199: 2 | C199: 2 | D199: 2 | E199: 1 | F199: 6 | G199: 0 | H199: 0 | I199: 0 | J199: 43 | K199: 2 | L199: F | M199: Nível 2 | N199: Nível 2 | O199: 1.6. | P199: SINAPI | R199: ALVENARIAS E DIVISÓRIAS | S199: - | U199: 1
A200: S | B200: 2 | C200: S | D200: 0 | E200: 1 | F200: 6 | G200: 0 | H200: 0 | I200: 0 | J200: 0 | K200: 0 | L200: F | M200: Serviço | N200: Serviço | O200: 1.6.0.0.1. | P200: SINAPI | Q200: 87520 | R200: ALVENARIA DE VEDAÇÃO DE BLOCOS CERÂMICOS FURADOS NA HORIZONTAL DE 9X19X19CM (ESPESSURA 9CM) DE PAREDES COM ÁREA LÍQUIDA MAIOR OU IGUAL A 6M² COM VÃOS E ARGAMASSA DE ASSENTAMENTO COM PREPARO MANUAL. AF_06/2014 | S200: M2 | T200: 10 | U200: 1 | AA200: Referência: AGETOP - 100201
A201: 2 | B201: 2 | C201: 2 | D201: 2 | E201: 1 | F201: 7 | G201: 0 | H201: 0 | I201: 0 | J201: 41 | K201: 2 | L201: F | M201: Nível 2 | N201: Nível 2 | O201: 1.7. | R201: COBERTURAS | S201: - | U201: 1
A202: S | B202: 2 | C202: S | D202: 0 | E202: 1 | F202: 7 | G202: 0 | H202: 0 | I202: 0 | J202: 0 | K202: 0 | L202: F | M202: Serviço | N202: Serviço | O202: 1.7.0.0.1. | P202: SINAPI | Q202: 94228 | R202: CALHA EM CHAPA DE AÇO GALVANIZADO NÚMERO 24, DESENVOLVIMENTO DE 50 CM, INCLUSO TRANSPORTE VERTICAL. AF_07/2019 | S202: M | T202: 55 | U202: 1 | AA202: Referência: AGETOP - 160601
A203: 2 | B203: 2 | C203: 2 | D203: 2 | E203: 1 | F203: 8 | G203: 0 | H203: 0 | I203: 0 | J203: 39 | K203: 2 | L203: F | M203: Nível 2 | N203: Nível 2 | O203: 1.8. | R203: ESQUADRIAS METÁLICAS | S203: - | U203: 1
A204: S | B204: 2 | C204: S | D204: 0 | E204: 1 | F204: 8 | G204: 0 | H204: 0 | I204: 0 | J204: 0 | K204: 0 | L204: F | M204: Serviço | N204: Serviço | O204: 1.8.0.0.1. | P204: SINAPI | Q204: 74136/3 | R204: PORTA DE ACO CHAPA 24, DE ENROLAR, RAIADA, LARGA COM ACABAMENTO GALVANIZADO NATURAL | S204: M2 | T204: 24 | U204: 1 | AA204: Referência: AGETOP - 180303
A205: 2 | B205: 2 | C205: 2 | D205: 5 | E205: 1 | F205: 9 | G205: 0 | H205: 0 | I205: 0 | J205: 37 | K205: 5 | L205: F | M205: Nível 2 | N205: Nível 2 | O205: 1.9. | R205: REVESTIMENTO DE PAREDE | S205: - | U205: 1
A206: S | B206: 2 | C206: S | D206: 0 | E206: 1 | F206: 9 | G206: 0 | H206: 0 | I206: 0 | J206: 0 | K206: 0 | L206: F | M206: Serviço | N206: Serviço | O206: 1.9.0.0.1. | P206: SINAPI | Q206: 87553 | R206: EMBOÇO, PARA RECEBIMENTO DE CERÂMICA, EM ARGAMASSA TRAÇO 1:2:8, PREPARO MECÂNICO COM BETONEIRA 400L, APLICADO MANUALMENTE EM FACES INTERNAS DE PAREDES, PARA AMBIENTE COM ÁREA MAIOR QUE 10M2, ESPESSURA DE 10MM, COM EXECUÇÃO DE TALISCAS. AF_06/2014 | S206: M2 | T206: 50.28 | U206: 1
... 389 more rows

Sheet Resumo
B3: UNIDADE ESCOLAR | G3: CÓDIGO INEP
B4: =Orçamento!$O$4 -> CENTRO DE ENSINO EM PERÍODO INTEGRAL POLIVALENTE ANTÔNIO C PANIAGO | G4: =Orçamento!X4 -> 52053385
B6: OBRA | G6: CIDADE
B7: =Orçamento!$O$7 -> REFORMA E AMPLIAÇÃO | G7: =Orçamento!$X$7 -> MINEIROS
B9: ENDEREÇO | G9: CRE
B10: =Orçamento!$R$10 -> RUA 6 A, MARTINS, CEP:75832-028 | G10: =Orçamento!$O$10 -> MINEIROS
B12: REFERÊNCIA | D12: DATA | G12: ÁREA TOTAL CONSTRUÍDA (M²)
B13: =CONCATENATE("AGETOP E SINAPI - ",Orçamento!$Y$10) -> AGETOP E SINAPI - ONERADA | D13: =Orçamento!$S$7 -> 2020-04-23 | G13: =Orçamento!$S$13 -> 3442.68
A14: FILTRO
B15: RESUMO GERAL DO ORÇAMENTO
A16: ↓ | B16: ITEM | C16: DESCRIÇÃO DOS SERVIÇOS | G16: PREÇO SEM BDI | H16: PREÇO COM BDI | I16: PARTICIP. (%)
A17: =IF(G17>0,"F","") ->  | B17: 1. | C17: =Orçamento!$P575 -> REFORMA | G17: =IFERROR(Orçamento!S575,"-") -> 0 | H17: =IFERROR(Orçamento!X575,"") -> 0 | I17: =Orçamento!AA575 -> 0
A18: =IF(G18>0,"F","") ->  | B18: 2. | C18: =Orçamento!$P576 -> VESTIÁRIO PADRÃO SEDUC | G18: =IFERROR(Orçamento!S576,"-") -> 0 | H18: =IFERROR(Orçamento!X576,"") -> 0 | I18: =Orçamento!AA576 -> 0
A19: F | B19: 3. | C19: =Orçamento!$P577 -> PÁTIO MULTIUSO - PADRÃO SEDUC - OPÇÃO 03 | G19: =IFERROR(Orçamento!S577,"-") -> 628742.42 | H19: =IFERROR(Orçamento!X577,"") -> 763026.96 | I19: =Orçamento!AA577 -> 100
B20: 4. | C20: =Orçamento!$P578 ->  | G20: =IFERROR(Orçamento!S578,"-") -> 0 | H20: =IFERROR(Orçamento!X578,"") -> 0 | I20: =Orçamento!AA578 -> 0
B21: 5. | C21: =Orçamento!$P579 ->  | G21: =IFERROR(Orçamento!S579,"-") -> 0 | H21: =IFERROR(Orçamento!X579,"") -> 0 | I21: =Orçamento!AA579 -> 0
B22: 6. | C22: =Orçamento!$P580 ->  | G22: =IFERROR(Orçamento!S580,"-") -> 0 | H22: =IFERROR(Orçamento!X580,"") -> 0 | I22: =Orçamento!AA580 -> 0
B23: 7. | C23: =Orçamento!$P581 ->  | G23: =IFERROR(Orçamento!S581,"-") -> 0 | H23: =IFERROR(Orçamento!X581,"") -> 0 | I23: =Orçamento!AA581 -> 0
B24: 8. | C24: =Orçamento!$P582 ->  | G24: =IFERROR(Orçamento!S582,"-") -> 0 | H24: =IFERROR(Orçamento!X582,"") -> 0 | I24: =Orçamento!AA582 -> 0
B25: 9. | C25: =Orçamento!$P583 ->  | G25: =IFERROR(Orçamento!S583,"-") -> 0 | H25: =IFERROR(Orçamento!X583,"") -> 0 | I25: =Orçamento!AA583 -> 0
B26: 10. | C26: =Orçamento!$P584 ->  | G26: =IFERROR(Orçamento!S584,"-") -> 0 | H26: =IFERROR(Orçamento!X584,"") -> 0 | I26: =Orçamento!AA584 -> 0
B27: 11. | C27: =Orçamento!$P585 ->  | G27: =IFERROR(Orçamento!S585,"-") -> 0 | H27: =IFERROR(Orçamento!X585,"") -> 0 | I27: =Orçamento!AA585 -> 0
B28: 12. | C28: =Orçamento!$P586 ->  | G28: =IFERROR(Orçamento!S586,"-") -> 0 | H28: =IFERROR(Orçamento!X586,"") -> 0 | I28: =Orçamento!AA586 -> 0
B29: 13. | C29: =Orçamento!$P587 ->  | G29: =IFERROR(Orçamento!S587,"-") -> 0 | H29: =IFERROR(Orçamento!X587,"") -> 0 | I29: =Orçamento!AA587 -> 0
B30: 14. | C30: =Orçamento!$P588 ->  | G30: =IFERROR(Orçamento!S588,"-") -> 0 | H30: =IFERROR(Orçamento!X588,"") -> 0 | I30: =Orçamento!AA588 -> 0
B31: 15. | C31: =Orçamento!$P589 ->  | G31: =IFERROR(Orçamento!S589,"-") -> 0 | H31: =IFERROR(Orçamento!X589,"") -> 0 | I31: =Orçamento!AA589 -> 0
B32: 16. | C32: =Orçamento!$P590 ->  | G32: =IFERROR(Orçamento!S590,"-") -> 0 | H32: =IFERROR(Orçamento!X590,"") -> 0 | I32: =Orçamento!AA590 -> 0
B33: 17. | C33: =Orçamento!$P591 ->  | G33: =IFERROR(Orçamento!S591,"-") -> 0 | H33: =IFERROR(Orçamento!X591,"") -> 0 | I33: =Orçamento!AA591 -> 0
B34: 18. | C34: =Orçamento!$P592 ->  | G34: =IFERROR(Orçamento!S592,"-") -> 0 | H34: =IFERROR(Orçamento!X592,"") -> 0 | I34: =Orçamento!AA592 -> 0
B35: 19. | C35: =Orçamento!$P593 ->  | G35: =IFERROR(Orçamento!S593,"-") -> 0 | H35: =IFERROR(Orçamento!X593,"") -> 0 | I35: =Orçamento!AA593 -> 0
B36: 20. | C36: =Orçamento!$P594 ->  | G36: =IFERROR(Orçamento!S594,"-") -> 0 | H36: =IFERROR(Orçamento!X594,"") -> 0 | I36: =Orçamento!AA594 -> 0
A37: F | B37: TOTAL GERAL DO ORÇAMENTO (R$) | G37: =SUM(G17:G36) -> 628742.42 | H37: 763026.96 | I37: =SUM(I17:I36) -> 100
A38: F
A39: F

Sheet Somatório
B3: UNIDADE ESCOLAR | E3: CÓDIGO INEP
B4: =Orçamento!$O$4 -> CENTRO DE ENSINO EM PERÍODO INTEGRAL POLIVALENTE ANTÔNIO C PANIAGO | E4: =Orçamento!X4 -> 52053385
B6: OBRA | E6: CIDADE
B7: =Orçamento!$O$7 -> REFORMA E AMPLIAÇÃO | E7: =Orçamento!$X$7 -> MINEIROS
B9: ENDEREÇO | E9: CRE
B10: =Orçamento!$R$10 -> RUA 6 A, MARTINS, CEP:75832-028 | E10: =Orçamento!$O$10 -> MINEIROS
B12: REFERÊNCIA | D12: DATA | E12: ÁREA TOTAL CONSTRUÍDA (M²)
B13: =CONCATENATE("AGETOP E SINAPI - ",Orçamento!$Y$10) -> AGETOP E SINAPI - ONERADA | D13: =Orçamento!$S$7 -> 2020-04-23 | E13: =Orçamento!$S$13 -> 3442.68
A14: FILTRO
B15: SOMATÓRIO DE SERVIÇOS
A16: ↓ | B16: ITEM | C16: DESCRIÇÃO DOS SERVIÇOS | D16: PREÇO SEM BDI (R$) | E16: PREÇO COM BDI (R$) | F16: PARTIC. ( % )
A17: =IF(D17>0,"F","") ->  | B17: a. | C17: =Orçamento!P541 -> SERVIÇOS PRELIMINARES | D17: =Orçamento!S541 -> 0 | E17: =Orçamento!X541 -> 0 | F17: =Orçamento!AA541 -> 0
A18: =IF(D18>0,"F","") ->  | B18: b. | C18: =Orçamento!P542 -> TRANSPORTES | D18: =Orçamento!S542 -> 0 | E18: =Orçamento!X542 -> 0 | F18: =Orçamento!AA542 -> 0
B19: c. | C19: =Orçamento!P543 -> SERVIÇO EM TERRA | D19: =Orçamento!S543 -> 0 | E19: =Orçamento!X543 -> 0 | F19: =Orçamento!AA543 -> 0
B20: d. | C20: =Orçamento!P544 -> FUNDAÇÕES E SONDAGENS | D20: =Orçamento!S544 -> 0 | E20: =Orçamento!X544 -> 0 | F20: =Orçamento!AA544 -> 0
B21: e. | C21: =Orçamento!P545 -> ESTRUTURA | D21: =Orçamento!S545 -> 0 | E21: =Orçamento!X545 -> 0 | F21: =Orçamento!AA545 -> 0
B22: f. | C22: =Orçamento!P546 -> INSTALAÇÕES ELÉTRICAS | D22: =Orçamento!S546 -> 0 | E22: =Orçamento!X546 -> 0 | F22: =Orçamento!AA546 -> 0
B23: g. | C23: =Orçamento!P547 -> INSTALAÇÕES HIDROSSANITÁRIAS | D23: =Orçamento!S547 -> 0 | E23: =Orçamento!X547 -> 0 | F23: =Orçamento!AA547 -> 0
B24: h | C24: =Orçamento!P548 -> INSTALAÇÕES ESPECIAIS | D24: =Orçamento!S548 -> 0 | E24: =Orçamento!X548 -> 0 | F24: =Orçamento!AA548 -> 0
B25: i. | C25: =Orçamento!P549 -> ALVENARIAS E DIVISÓRIAS | D25: =Orçamento!S549 -> 0 | E25: =Orçamento!X549 -> 0 | F25: =Orçamento!AA549 -> 0
B26: j. | C26: =Orçamento!P550 -> ALVENARIA AUTO-PORTANTE | D26: =Orçamento!S550 -> 0 | E26: =Orçamento!X550 -> 0 | F26: =Orçamento!AA550 -> 0
B27: k. | C27: =Orçamento!P551 -> IMPERMEABILIZAÇÃO | D27: =Orçamento!S551 -> 0 | E27: =Orçamento!X551 -> 0 | F27: =Orçamento!AA551 -> 0
B28: l. | C28: =Orçamento!P552 -> ISOLAMENTO TÉRMICO E ACÚSTICO | D28: =Orçamento!S552 -> 0 | E28: =Orçamento!X552 -> 0 | F28: =Orçamento!AA552 -> 0
B29: m. | C29: =Orçamento!P553 -> ESTRUTURA DE MADEIRA | D29: =Orçamento!S553 -> 0 | E29: =Orçamento!X553 -> 0 | F29: =Orçamento!AA553 -> 0
B30: n. | C30: =Orçamento!P554 -> ESTRUTURAS METÁLICAS | D30: =Orçamento!S554 -> 0 | E30: =Orçamento!X554 -> 0 | F30: =Orçamento!AA554 -> 0
B31: o. | C31: =Orçamento!P555 -> COBERTURAS | D31: =Orçamento!S555 -> 0 | E31: =Orçamento!X555 -> 0 | F31: =Orçamento!AA555 -> 0
B32: p. | C32: =Orçamento!P556 -> ESQUADRIAS DE MADEIRA | D32: =Orçamento!S556 -> 0 | E32: =Orçamento!X556 -> 0 | F32: =Orçamento!AA556 -> 0
B33: q. | C33: =Orçamento!P557 -> ESQUADRIAS METÁLICAS | D33: =Orçamento!S557 -> 0 | E33: =Orçamento!X557 -> 0 | F33: =Orçamento!AA557 -> 0
B34: r. | C34: =Orçamento!P558 -> VIDROS | D34: =Orçamento!S558 -> 0 | E34: =Orçamento!X558 -> 0 | F34: =Orçamento!AA558 -> 0
B35: s. | C35: =Orçamento!P559 -> REVESTIMENTO DE PAREDE | D35: =Orçamento!S559 -> 0 | E35: =Orçamento!X559 -> 0 | F35: =Orçamento!AA559 -> 0
B36: t. | C36: =Orçamento!P560 -> FORROS | D36: =Orçamento!S560 -> 0 | E36: =Orçamento!X560 -> 0 | F36: =Orçamento!AA560 -> 0
B37: u. | C37: =Orçamento!P561 -> REVESTIMENTO DE PISO | D37: =Orçamento!S561 -> 0 | E37: =Orçamento!X561 -> 0 | F37: =Orçamento!AA561 -> 0
B38: v. | C38: =Orçamento!P562 -> FERRAGENS | D38: =Orçamento!S562 -> 0 | E38: =Orçamento!X562 -> 0 | F38: =Orçamento!AA562 -> 0
B39: w. | C39: =Orçamento!P563 -> MARCENARIA | D39: =Orçamento!S563 -> 0 | E39: =Orçamento!X563 -> 0 | F39: =Orçamento!AA563 -> 0
B40: x. | C40: =Orçamento!P564 -> ADMINISTRAÇÃO | D40: =Orçamento!S564 -> 0 | E40: =Orçamento!X564 -> 0 | F40: =Orçamento!AA564 -> 0
B41: y. | C41: =Orçamento!P565 -> PINTURA | D41: =Orçamento!S565 -> 0 | E41: =Orçamento!X565 -> 0 | F41: =Orçamento!AA565 -> 0
B42: z. | C42: =Orçamento!P566 -> DIVERSOS | D42: =Orçamento!S566 -> 0 | E42: =Orçamento!X566 -> 0 | F42: =Orçamento!AA566 -> 0
A43: F | B43: TOTAL GERAL DO ORÇAMENTO | D43: =SUM(D17:D42) -> 0 | E43: =SUM(E17:E42) -> 0 | F43: =SUM(F17:F42) -> 0
B45: (*) Para itens da AGETOP, os vidros não estão inclusos nas esquadrias e já foram considerados os custos de contramarco para as esquadrias de alumínio;

Sheet Cronog_90_Dias
B3: UNIDADE ESCOLAR | I3: PRAZO
B4: =Orçamento!$O$4 -> CENTRO DE ENSINO EM PERÍODO INTEGRAL POLIVALENTE ANTÔNIO C PANIAGO | I4: 90 DIAS CORRIDOS
B6: OBRA | I6: DATA
B7: =Orçamento!$O$7 -> REFORMA E AMPLIAÇÃO | I7: =Orçamento!$S$7 -> 2020-04-23
B9: LOCAL | I9: ÁREA TOTAL CONSTRUÍDA (M²)
A10: FILTRO | B10: =Orçamento!$X$7 -> MINEIROS | I10: =Orçamento!$S$13 -> 3442.68
B12: CRONOGRAMA - FÍSICO FINANCEIRO
A13: ↓ | B13: CUSTO TOTAL: | C13: =D93 -> 0 | D13: VALOR | E13: Dias: | F13: 30 | J13: 60 | N13: 90 | R13: TOTAL
B14: DESCRIÇÃO DOS SERVIÇOS | E14: % | F14: 1ª PARCELA | J14: 2ª PARCELA | N14: 3ª PARCELA
A15: =IF(D15>0,"F","") ->  | B15: SERVIÇOS PRELIMINARES | D15: =Orçamento!X541 -> 0 | E15: =Orçamento!AA541 -> 0 | F15: =ROUND(F17*$D$15,2) -> 0 | J15: =ROUND(J17*$D$15,2) -> 0 | N15: =ROUND(N17*$D$15,2) -> 0 | R15: =SUM(F15:Q15) -> 0
A16: =IF(A15="F",A15,"") -> 
A17: =IF(A16="F",A16,"") ->  | F17: 1 | J17: 0 | N17: =1-F17-J17 -> 0 | R17: =IFERROR(E15/100,"") -> 0
A18: =IF(D18>0,"F","") ->  | B18: TRANSPORTES | D18: =Orçamento!X542 -> 0 | E18: =Orçamento!AA542 -> 0 | F18: =ROUND(F20*$D$18,2) -> 0 | J18: =ROUND(J20*$D$18,2) -> 0 | N18: =ROUND(N20*$D$18,2) -> 0 | R18: =SUM(F18:Q18) -> 0
A19: =IF(A18="F",A18,"") -> 
A20: =IF(A19="F",A19,"") ->  | F20: 0 | J20: =1-B20 -> 1 | N20: =1-F20-J20 -> 0 | R20: =IFERROR(E18/100,"") -> 0
A21: =IF(D21>0,"F","") ->  | B21: SERVIÇO EM TERRA | D21: =Orçamento!X543 -> 0 | E21: =Orçamento!AA543 -> 0 | F21: =ROUND(F23*$D$21,2) -> 0 | J21: =ROUND(J23*$D$21,2) -> 0 | N21: =ROUND(N23*$D$21,2) -> 0 | R21: =SUM(F21:Q21) -> 0
A22: =IF(A21="F",A21,"") -> 
A23: =IF(A22="F",A22,"") ->  | F23: 1 | J23: 0 | N23: =1-F23-J23 -> 0 | R23: =IFERROR(E21/100,"") -> 0
A24: =IF(D24>0,"F","") ->  | B24: FUNDAÇÕES E SONDAGENS | D24: =Orçamento!X544 -> 0 | E24: =Orçamento!AA544 -> 0 | F24: =ROUND(F26*$D$24,2) -> 0 | J24: =ROUND(J26*$D$24,2) -> 0 | N24: =ROUND(N26*$D$24,2) -> 0 | R24: =SUM(F24:Q24) -> 0
A25: =IF(A24="F",A24,"") -> 
A26: =IF(A25="F",A25,"") ->  | F26: 1 | J26: 0 | N26: =1-F26-J26 -> 0 | R26: =IFERROR(E24/100,"") -> 0
A27: =IF(D27>0,"F","") ->  | B27: ESTRUTURA | D27: =Orçamento!X545 -> 0 | E27: =Orçamento!AA545 -> 0 | F27: =ROUND(F29*$D$27,2) -> 0 | J27: =ROUND(J29*$D$27,2) -> 0 | N27: =ROUND(N29*$D$27,2) -> 0 | R27: =SUM(F27:Q27) -> 0
A28: =IF(A27="F",A27,"") -> 
A29: =IF(A28="F",A28,"") ->  | F29: 0.61 | J29: 0.39 | N29: =1-F29-J29 -> 0 | R29: =IFERROR(E27/100,"") -> 0
A30: =IF(D30>0,"F","") ->  | B30: INST.ELET/TELEFÔNICA/CABEAMENTO ESTRUTURADO | D30: =Orçamento!X546 -> 0 | E30: =Orçamento!AA546 -> 0 | F30: =ROUND(F32*$D$30,2) -> 0 | J30: =ROUND(J32*$D$30,2) -> 0 | N30: =ROUND(N32*$D$30,2) -> 0 | R30: =SUM(F30:Q30) -> 0
A31: =IF(A30="F",A30,"") -> 
A32: =IF(A31="F",A31,"") ->  | F32: 0.18 | J32: 0.7 | N32: =1-F32-J32 -> 0.12 | R32: =IFERROR(E30/100,"") -> 0
A33: =IF(D33>0,"F","") ->  | B33: INSTALAÇÕES HIDROSSANITÁRIAS | D33: =Orçamento!X547 -> 0 | E33: =Orçamento!AA547 -> 0 | F33: =ROUND(F35*$D$33,2) -> 0 | J33: =ROUND(J35*$D$33,2) -> 0 | N33: =ROUND(N35*$D$33,2) -> 0 | R33: =SUM(F33:Q33) -> 0
A34: =IF(A33="F",A33,"") -> 
A35: =IF(A34="F",A34,"") ->  | F35: 0.18 | J35: 0.7 | N35: =1-F35-J35 -> 0.12 | R35: =IFERROR(E33/100,"") -> 0
A36: =IF(D36>0,"F","") ->  | B36: INSTALAÇÕES ESPECIAIS | D36: =Orçamento!X548 -> 0 | E36: =Orçamento!AA548 -> 0 | F36: =ROUND(F38*$D$36,2) -> 0 | J36: =ROUND(J38*$D$36,2) -> 0 | N36: =ROUND(N38*$D$36,2) -> 0 | R36: =SUM(F36:Q36) -> 0
A37: =IF(A36="F",A36,"") -> 
A38: =IF(A37="F",A37,"") ->  | F38: 0 | J38: =1-B38 -> 1 | N38: =1-F38-J38 -> 0 | R38: =IFERROR(E36/100,"") -> 0
A39: =IF(D39>0,"F","") ->  | B39: ALVENARIA E DIVISÓRIAS | D39: =Orçamento!X549 -> 0 | E39: =Orçamento!AA549 -> 0 | F39: =ROUND(F41*$D$39,2) -> 0 | J39: =ROUND(J41*$D$39,2) -> 0 | N39: =ROUND(N41*$D$39,2) -> 0 | R39: =SUM(F39:Q39) -> 0
A40: =IF(A39="F",A39,"") -> 
A41: =IF(A40="F",A40,"") ->  | F41: 0 | J41: =1-B41 -> 1 | N41: =1-F41-J41 -> 0 | R41: =IFERROR(E39/100,"") -> 0
A42: =IF(D42>0,"F","") ->  | B42: ALVENARIA AUTO-PORTANTE | D42: =Orçamento!X550 -> 0 | E42: =Orçamento!AA550 -> 0 | F42: =ROUND(F44*$D$42,2) -> 0 | J42: =ROUND(J44*$D$42,2) -> 0 | N42: =ROUND(N44*$D$42,2) -> 0 | R42: =SUM(F42:Q42) -> 0
A43: =IF(A42="F",A42,"") -> 
A44: =IF(A43="F",A43,"") ->  | F44: 1 | J44: =1-B44 -> 1 | N44: =1-F44 -> 0 | R44: =IFERROR(E42/100,"") -> 0
A45: =IF(D45>0,"F","") ->  | B45: IMPERMEABILIZAÇÃO | D45: =Orçamento!X551 -> 0 | E45: =Orçamento!AA551 -> 0 | F45: =ROUND(F47*$D$45,2) -> 0 | J45: =ROUND(J47*$D$45,2) -> 0 | N45: =ROUND(N47*$D$45,2) -> 0 | R45: =SUM(F45:Q45) -> 0
A46: =IF(A45="F",A45,"") -> 
A47: =IF(A46="F",A46,"") ->  | F47: 0.85 | J47: 0.15 | N47: =1-F47-J47 -> 0 | R47: =IFERROR(E45/100,"") -> 0
A48: =IF(D48>0,"F","") ->  | B48: ISOLAMENTO TÉRMICO E ACÚSTICO | D48: =Orçamento!X552 -> 0 | E48: =Orçamento!AA552 -> 0 | F48: =ROUND(F50*$D$48,2) -> 0 | J48: =ROUND(J50*$D$48,2) -> 0 | N48: =ROUND(N50*$D$48,2) -> 0 | R48: =SUM(F48:Q48) -> 0
A49: =IF(A48="F",A48,"") -> 
A50: =IF(A49="F",A49,"") ->  | F50: 0.5 | J50: =1-B50 -> 1 | N50: =1-F50 -> 0.5 | R50: =IFERROR(E48/100,"") -> 0
A51: =IF(D51>0,"F","") ->  | B51: ESTRUTURA DE MADEIRA | D51: =Orçamento!X553 -> 0 | E51: =Orçamento!AA553 -> 0 | F51: =ROUND(F53*$D$51,2) -> 0 | J51: =ROUND(J53*$D$51,2) -> 0 | N51: =ROUND(N53*$D$51,2) -> 0 | R51: =SUM(F51:Q51) -> 0
A52: =IF(A51="F",A51,"") -> 
A53: =IF(A52="F",A52,"") ->  | F53: 0.35 | J53: 0.65 | N53: =1-F53-J53 -> 0 | R53: =IFERROR(E51/100,"") -> 0
A54: =IF(D54>0,"F","") ->  | B54: ESTRUTURA METÁLICA | D54: =Orçamento!X554 -> 0 | E54: =Orçamento!AA554 -> 0 | F54: =ROUND(F56*$D$54,2) -> 0 | J54: =ROUND(J56*$D$54,2) -> 0 | N54: =ROUND(N56*$D$54,2) -> 0 | R54: =SUM(F54:Q54) -> 0
A55: =IF(A54="F",A54,"") -> 
A56: =IF(A55="F",A55,"") ->  | F56: 0.38 | J56: 0.62 | N56: =1-F56-J56 -> 0 | R56: =IFERROR(E54/100,"") -> 0
A57: =IF(D57>0,"F","") ->  | B57: COBERTURAS | D57: =Orçamento!X555 -> 0 | E57: =Orçamento!AA555 -> 0 | F57: =ROUND(F59*$D$57,2) -> 0 | J57: =ROUND(J59*$D$57,2) -> 0 | N57: =ROUND(N59*$D$57,2) -> 0 | R57: =SUM(F57:Q57) -> 0
A58: =IF(A57="F",A57,"") -> 
A59: =IF(A58="F",A58,"") ->  | F59: 0 | J59: 0.28 | N59: =1-F59-J59 -> 0.72 | R59: =IFERROR(E57/100,"") -> 0
A60: =IF(D60>0,"F","") ->  | B60: ESQUADRIAS DE MADEIRA | D60: =Orçamento!X556 -> 0 | E60: =Orçamento!AA556 -> 0 | F60: =ROUND(F62*$D$60,2) -> 0 | J60: =ROUND(J62*$D$60,2) -> 0 | N60: =ROUND(N62*$D$60,2) -> 0 | R60: =SUM(F60:Q60) -> 0
A61: =IF(A60="F",A60,"") -> 
A62: =IF(A61="F",A61,"") ->  | F62: 0.54 | J62: =1-B62 -> 1 | N62: =1-F62 -> 0.46 | R62: =IFERROR(E60/100,"") -> 0
A63: =IF(D63>0,"F","") ->  | B63: ESQUADRIAS METÁLICAS | D63: =Orçamento!X557 -> 0 | E63: =Orçamento!AA557 -> 0 | F63: =ROUND(F65*$D$63,2) -> 0 | J63: =ROUND(J65*$D$63,2) -> 0 | N63: =ROUND(N65*$D$63,2) -> 0 | R63: =SUM(F63:Q63) -> 0
A64: =IF(A63="F",A63,"") -> 
A65: =IF(A64="F",A64,"") ->  | F65: 0 | J65: 0.68 | N65: =1-F65-J65 -> 0.32 | R65: =IFERROR(E63/100,"") -> 0
A66: =IF(D66>0,"F","") ->  | B66: VIDROS | D66: =Orçamento!X558 -> 0 | E66: =Orçamento!AA558 -> 0 | F66: =ROUND(F68*$D$66,2) -> 0 | J66: =ROUND(J68*$D$66,2) -> 0 | N66: =ROUND(N68*$D$66,2) -> 0 | R66: =SUM(F66:Q66) -> 0
A67: =IF(A66="F",A66,"") -> 
A68: =IF(A67="F",A67,"") ->  | F68: 0 | J68: 0 | N68: =1-F68-J68 -> 1 | R68: =IFERROR(E66/100,"") -> 0
A69: =IF(D69>0,"F","") ->  | B69: REVESTIMENTO DE PAREDE | D69: =Orçamento!X559 -> 0 | E69: =Orçamento!AA559 -> 0 | F69: =ROUND(F71*$D$69,2) -> 0 | J69: =ROUND(J71*$D$69,2) -> 0 | N69: =ROUND(N71*$D$69,2) -> 0 | R69: =SUM(F69:Q69) -> 0
A70: =IF(A69="F",A69,"") -> 
A71: =IF(A70="F",A70,"") ->  | F71: 0 | J71: 0.57 | N71: =1-F71-J71 -> 0.43 | R71: =IFERROR(E69/100,"") -> 0
A72: =IF(D72>0,"F","") ->  | B72: FORROS | D72: =Orçamento!X560 -> 0 | E72: =Orçamento!AA560 -> 0 | F72: =ROUND(F74*$D$72,2) -> 0 | J72: =ROUND(J74*$D$72,2) -> 0 | N72: =ROUND(N74*$D$72,2) -> 0 | R72: =SUM(F72:Q72) -> 0
A73: =IF(A72="F",A72,"") -> 
A74: =IF(A73="F",A73,"") ->  | F74: 0 | J74: 0 | N74: =1-F74-J74 -> 1 | R74: =IFERROR(E72/100,"") -> 0
A75: =IF(D75>0,"F","") ->  | B75: REVESTIMENTO DE PISO | D75: =Orçamento!X561 -> 0 | E75: =Orçamento!AA561 -> 0 | F75: =ROUND(F77*$D$75,2) -> 0 | J75: =ROUND(J77*$D$75,2) -> 0 | N75: =ROUND(N77*$D$75,2) -> 0 | R75: =SUM(F75:Q75) -> 0
A76: =IF(A75="F",A75,"") -> 
A77: =IF(A76="F",A76,"") ->  | F77: 0 | J77: 0.78 | N77: =1-F77-J77 -> 0.22 | R77: =IFERROR(E75/100,"") -> 0
A78: =IF(D78>0,"F","") ->  | B78: FERRAGENS | D78: =Orçamento!X562 -> 0 | E78: =Orçamento!AA562 -> 0 | F78: =ROUND(F80*$D$78,2) -> 0 | J78: =ROUND(J80*$D$78,2) -> 0 | N78: =ROUND(N80*$D$78,2) -> 0 | R78: =SUM(F78:Q78) -> 0
A79: =IF(A78="F",A78,"") -> 
A80: =IF(A79="F",A79,"") ->  | F80: 0 | J80: 0 | N80: =1-F80-J80 -> 1 | R80: =IFERROR(E78/100,"") -> 0
A81: =IF(D81>0,"F","") ->  | B81: MARCENARIA | D81: =Orçamento!X563 -> 0 | E81: =Orçamento!AA563 -> 0 | F81: =ROUND(F83*$D$81,2) -> 0 | J81: =ROUND(J83*$D$81,2) -> 0 | N81: =ROUND(N83*$D$81,2) -> 0 | R81: =SUM(F81:Q81) -> 0
A82: =IF(A81="F",A81,"") -> 
A83: =IF(A82="F",A82,"") ->  | F83: 0.4 | J83: =1-B83 -> 1 | N83: =1-F83 -> 0.6 | R83: =IFERROR(E81/100,"") -> 0
A84: =IF(D84>0,"F","") ->  | B84: ADMINISTRAÇÃO - MENSALISTAS | D84: =Orçamento!X564 -> 0 | E84: =Orçamento!AA564 -> 0 | F84: =ROUND(F86*$D$84,2) -> 0 | J84: =ROUND(J86*$D$84,2) -> 0 | N84: =ROUND(N86*$D$84,2) -> 0 | R84: =SUM(F84:Q84) -> 0
A85: =IF(A84="F",A84,"") -> 
A86: =IF(A85="F",A85,"") ->  | F86: 0.4 | J86: 0.3 | N86: =1-F86-J86 -> 0.3 | R86: =IFERROR(E84/100,"") -> 0
A87: =IF(D87>0,"F","") ->  | B87: PINTURA | D87: =Orçamento!X565 -> 0 | E87: =Orçamento!AA565 -> 0 | F87: =ROUND(F89*$D$87,2) -> 0 | J87: =ROUND(J89*$D$87,2) -> 0 | N87: =ROUND(N89*$D$87,2) -> 0 | R87: =SUM(F87:Q87) -> 0
A88: =IF(A87="F",A87,"") -> 
A89: =IF(A88="F",A88,"") ->  | F89: 0 | J89: 0.47 | N89: =1-F89-J89 -> 0.53 | R89: =IFERROR(E87/100,"") -> 0
A90: =IF(D90>0,"F","") ->  | B90: DIVERSOS | D90: =Orçamento!X566 -> 0 | E90: =Orçamento!AA566 -> 0 | F90: =ROUND(F92*$D$90,2) -> 0 | J90: =ROUND(J92*$D$90,2) -> 0 | N90: =ROUND(N92*$D$90,2) -> 0 | R90: =SUM(F90:Q90) -> 0
A91: =IF(A90="F",A90,"") -> 
A92: =IF(A91="F",A91,"") ->  | F92: 0 | J92: 0 | N92: =1-F92-J92 -> 1 | R92: =IFERROR(E90/100,"") -> 0
A93: F | B93: CUSTO DO ORÇAMENTO | D93: =SUM(D15:D92) -> 0 | E93: =SUM(E15:E92) -> 0 | F93: =F15+F18+F21+F24+F27+F30+F33+F36+F39+F42+F45+F48+F51+F54+F57+F60+F63+F66+F69+F72+F75+F78+F81+F84+F87+F90 -> 0 | J93: =J15+J18+J21+J24+J27+J30+J33+J36+J39+J42+J45+J48+J51+J54+J57+J60+J63+J66+J69+J72+J75+J78+J81+J84+J87+J90 -> 0 | N93: =N15+N18+N21+N24+N27+N30+N33+N36+N39+N42+N45+N48+N51+N54+N57+N60+N63+N66+N69+N72+N75+N78+N81+N84+N87+N90 -> 0 | R93: =R15+R18+R21+R24+R27+R30+R33+R36+R39+R42+R45+R48+R51+R54+R57+R60+R63+R66+R69+R72+R75+R78+R81+R84+R87+R90 -> 0
A94: F | B94: PERCENTUAIS: | F94: =IFERROR(F93/D93,"") ->  | J94: =IFERROR(J93/D93,"") ->  | N94: =IFERROR(N93/D93,"") ->  | R94: =SUM(F94:Q94) -> 0
A95: F | B95: TOTAIS ACUMULADOS: | F95: =F93 -> 0 | J95: =F95+J93 -> 0 | N95: =J95+N93 -> 0
A96: F | B96: PERCENTUAIS ACUMULADOS: | F96: =F94 ->  | J96: =IFERROR(F96+J94,"") ->  | N96: =IFERROR(J96+N94,"") -> 
A97: F
A98: F | B98: OBSERVAÇÕES:
A99: F | B99: Os pagamentos somente poderão ser efetuados mediante medição e atesto pelos técnicos da Secretaria da Educação.

Sheet Composição BDI
A3: UNIDADE ESCOLAR
A4: =Orçamento!$O$4 -> CENTRO DE ENSINO EM PERÍODO INTEGRAL POLIVALENTE ANTÔNIO C PANIAGO
A6: OBRA
A7: =Orçamento!$O$7 -> REFORMA E AMPLIAÇÃO
A9: ENDEREÇO
A10: =Orçamento!$R$10 -> RUA 6 A, MARTINS, CEP:75832-028
A12: CIDADE
A13: =Orçamento!$X$7 -> MINEIROS
A15: CRE
A16: =Orçamento!$O$10 -> MINEIROS
A18: DETALHAMENTO DA COMPOSIÇÃO DE BDI
A19: COMPOSIÇÃO BDI PARA OBRAS CIVIS | F19: BDI CONSTRUÇÃO E REFORMA
A20: DESCRIÇÃO | B20: COEF. | C20: TAXA % (a.m) | D20: % no preço de venda | F20: Situação | G20: 1º Quartil | H20: Médio | I20: 3º Quartil
A21: 1) COFINS | B21: 1 | C21: 0.03 | D21: =C21 -> 0.03 | F21: =IF(OR(C21<G21,C21>I21),"FORA DO INTERVALO","OK") -> OK | G21: 0.03 | H21: 0.03 | I21: 0.03
A22: 2) PIS | B22: 1 | C22: 0.0065 | D22: =C22 -> 0.0065 | F22: =IF(OR(C22<G22,C22>I22),"FORA DO INTERVALO","OK") -> OK | G22: 0.0065 | H22: 0.0065 | I22: 0.0065
A23: 3) ISSQN | B23: 1 | C23: 0.03 | D23: =C23*B23 -> 0.03 | F23: OK | G23: 0.02 | H23: 0.035 | I23: 0.05
A24: 4) CPRB | B24: 1 | C24: 0 | D24: =C24 -> 0 | F24: FORA DO INTERVALO | G24: 0.045 | H24: 0.045 | I24: 0.045
A25: 5) Administração Central | B25: 1 | C25: 0.04 | D25: 0.04 | F25: OK | G25: 0.03 | H25: 0.04 | I25: 0.055
A26: 6) Despesas Financeiras | B26: 1 | C26: 0.0056 | D26: 0.0056 | F26: FORA DO INTERVALO | G26: 0.0059 | H26: 0.0123 | I26: 0.0139
A27: 7) Seguros + Garantias | B27: 1 | C27: 0.0012 | D27: 0.0012 | F27: FORA DO INTERVALO | G27: 0.008 | H27: 0.008 | I27: 0.01
A28: 8) Risco | B28: 1 | C28: 0.0097 | D28: 0.0097 | F28: OK | G28: 0.0097 | H28: 0.0127 | I28: 0.0127
A29: 9) Lucro | B29: 1 | C29: 0.072 | D29: 0.072 | F29: OK | G29: 0.0616 | H29: 0.074 | I29: 0.0896
A30: BDI - FINAL | D30: =(((1+D25+D27+D28)*(1+D26)*(1+D29))/(1-(D21+D22+D23+D24))-1) -> 0.213576393 | F30: FORA DO INTERVALO | G30: 0.2034 | H30: 0.2212 | I30: 0.25
A32: Notas:
A33: (1) e (2) Alíquota definida por lei.
A34: (3) Alíquota e base de cálculo definidas pela legislação municipal.
A35: (4) Alíquota definida pelas leis 12.546/11, 12844/13 e 13.161/15 (CPRB – contribuição previdenciária sobre a receita bruta).
A36: (5) Valores definidos a partir dos limites no Acórdão nº 2.622/2013 - TCU – Plenário. Valores entre o 1º e 3º quartis.
A37: (6) Valor calculado pela expressão matemática do acórdão 2.369/2011 – TCU – Plenário e disponibilizado pela AGETOP em dezembro de 2018. (Foi utilizado para o cálculo a média da Taxa SELIC no período de 11/2017 a 10/2018)
A39: (7) Valores definidos pela AGETOP a partir dos limites no Acórdão nº 2.622/2013 - TCU – Plenário. Valores médios. Observação da AGETOP: (Seguros contra erros de execução, incêndio e explosão, danos da natureza (vendaval, destelhamento, alagamento, inundação, desmoronamento, geadas etc.), emprego de material defeituoso ou inadequado, roubo e/ou furto qualificado, quebra de equipamentos, desmoronamento de estrutura, nas modalidades de Obras Civis em Construção (OCC); Instalação e Montagem (IM); e Obras Civis em Construção e Instalação e Montagem (OCC/IM). Bem como coberturas adicionais para ampliação dessas coberturas básicas, como: cobertura de responsabilidade civil geral, cobertura de responsabilidade civil cruzada, cobertura de despesas extraordinárias, cobertura de tumultos, cobertura de desentulho do local, cobertura de riscos do fabricante, dentre outras, incluindo o seguro de vida em grupo regido pela convenção coletiva dos trabalhadores na indústria da construção civil). A partir de 24/02/2015 por intermédio da Portaria 449/2015 a Presidência da AGETOP, na pessoa do Senhor Jayme Eduardo Rincon, determinou a exclusão dos valores referentes aos Seguros de Risco de Engenharia e Responsabilidade Civil do Profissional na composição do cálculo do B.D.I..
A40: (8) Valores definidos a partir dos limites no Acórdão nº 2.622/2013 - TCU – Plenário. Valores entre 1º e 3° quartis.
A41: (9) Valores definidos a partir dos limites definidos no Acórdão nº 2.622/2013 - TCU – Plenário. Valores adotados e praticados no mercado ( “ ex ante ” ) ou aqueles entre os 1º e 3º quartis.
A43: (*) A fórmula para estipulação da taxa de BDI estimado adotado é a mesma que foi aplicada para a obtenção das tabelas contidas no Acórdão n. 2.622/2013 – TCUPlenário
A45: Obs.: Para obras com valores superiores a R$ 20.000.000,00 sugere-se recalcular o BDI, dimensionando as taxas de administração central e lucro para patamares inferiores ao estipulado acima.

Sheet Relatório CENTRAL
B3: UNIDADE ESCOLAR | D3: CIDADE
B4: =Orçamento!$O$4 -> CENTRO DE ENSINO EM PERÍODO INTEGRAL POLIVALENTE ANTÔNIO C PANIAGO | D4: =Orçamento!$X$7 -> MINEIROS
B6: OBRA | D6: CRE
B7: =Orçamento!$O$7 -> REFORMA E AMPLIAÇÃO | D7: =Orçamento!$O$10 -> MINEIROS
B9: ENDEREÇO | D9: DATA
A10: FILTRO | B10: =Orçamento!$R$10 -> RUA 6 A, MARTINS, CEP:75832-028 | D10: =Orçamento!$S$7 -> 2020-04-23
B12: RELATÓRIO CENTRAL
A13: ↓ | B13: CÓDIGO | C13: ETAPA | D13: PREÇO (R$) C/ BDI | E13: PARTIC ( % )
A14: =IF(D14>0,"F","") ->  | B14: =Orçamento!O541 -> a. | C14: =Orçamento!P541 -> SERVIÇOS PRELIMINARES | D14: =Orçamento!X541 -> 0 | E14: =Orçamento!AA541 -> 0
A15: =IF(D15>0,"F","") ->  | B15: =Orçamento!O542 -> b. | C15: =Orçamento!P542 -> TRANSPORTES | D15: =Orçamento!X542 -> 0 | E15: =Orçamento!AA542 -> 0
B16: =Orçamento!O543 -> c. | C16: =Orçamento!P543 -> SERVIÇO EM TERRA | D16: =Orçamento!X543 -> 0 | E16: =Orçamento!AA543 -> 0
B17: =Orçamento!O544 -> d. | C17: =Orçamento!P544 -> FUNDAÇÕES E SONDAGENS | D17: =Orçamento!X544 -> 0 | E17: =Orçamento!AA544 -> 0
B18: =Orçamento!O545 -> e. | C18: =Orçamento!P545 -> ESTRUTURA | D18: =Orçamento!X545 -> 0 | E18: =Orçamento!AA545 -> 0
B19: =Orçamento!O546 -> f. | C19: =Orçamento!P546 -> INSTALAÇÕES ELÉTRICAS | D19: =Orçamento!X546 -> 0 | E19: =Orçamento!AA546 -> 0
B20: =Orçamento!O547 -> g. | C20: =Orçamento!P547 -> INSTALAÇÕES HIDROSSANITÁRIAS | D20: =Orçamento!X547 -> 0 | E20: =Orçamento!AA547 -> 0
B21: =Orçamento!O548 -> h | C21: =Orçamento!P548 -> INSTALAÇÕES ESPECIAIS | D21: =Orçamento!X548 -> 0 | E21: =Orçamento!AA548 -> 0
B22: =Orçamento!O549 -> i. | C22: =Orçamento!P549 -> ALVENARIAS E DIVISÓRIAS | D22: =Orçamento!X549 -> 0 | E22: =Orçamento!AA549 -> 0
B23: =Orçamento!O550 -> j. | C23: =Orçamento!P550 -> ALVENARIA AUTO-PORTANTE | D23: =Orçamento!X550 -> 0 | E23: =Orçamento!AA550 -> 0
B24: =Orçamento!O551 -> k. | C24: =Orçamento!P551 -> IMPERMEABILIZAÇÃO | D24: =Orçamento!X551 -> 0 | E24: =Orçamento!AA551 -> 0
B25: =Orçamento!O552 -> l. | C25: =Orçamento!P552 -> ISOLAMENTO TÉRMICO E ACÚSTICO | D25: =Orçamento!X552 -> 0 | E25: =Orçamento!AA552 -> 0
B26: =Orçamento!O553 -> m. | C26: =Orçamento!P553 -> ESTRUTURA DE MADEIRA | D26: =Orçamento!X553 -> 0 | E26: =Orçamento!AA553 -> 0
B27: =Orçamento!O554 -> n. | C27: =Orçamento!P554 -> ESTRUTURAS METÁLICAS | D27: =Orçamento!X554 -> 0 | E27: =Orçamento!AA554 -> 0
B28: =Orçamento!O555 -> o. | C28: =Orçamento!P555 -> COBERTURAS | D28: =Orçamento!X555 -> 0 | E28: =Orçamento!AA555 -> 0
B29: =Orçamento!O556 -> p. | C29: =Orçamento!P556 -> ESQUADRIAS DE MADEIRA | D29: =Orçamento!X556 -> 0 | E29: =Orçamento!AA556 -> 0
B30: =Orçamento!O557 -> q. | C30: =Orçamento!P557 -> ESQUADRIAS METÁLICAS | D30: =Orçamento!X557 -> 0 | E30: =Orçamento!AA557 -> 0
B31: =Orçamento!O558 -> r. | C31: =Orçamento!P558 -> VIDROS | D31: =Orçamento!X558 -> 0 | E31: =Orçamento!AA558 -> 0
B32: =Orçamento!O559 -> s. | C32: =Orçamento!P559 -> REVESTIMENTO DE PAREDE | D32: =Orçamento!X559 -> 0 | E32: =Orçamento!AA559 -> 0
B33: =Orçamento!O560 -> t. | C33: =Orçamento!P560 -> FORROS | D33: =Orçamento!X560 -> 0 | E33: =Orçamento!AA560 -> 0
B34: =Orçamento!O561 -> u. | C34: =Orçamento!P561 -> REVESTIMENTO DE PISO | D34: =Orçamento!X561 -> 0 | E34: =Orçamento!AA561 -> 0
B35: =Orçamento!O562 -> v. | C35: =Orçamento!P562 -> FERRAGENS | D35: =Orçamento!X562 -> 0 | E35: =Orçamento!AA562 -> 0
B36: =Orçamento!O563 -> w. | C36: =Orçamento!P563 -> MARCENARIA | D36: =Orçamento!X563 -> 0 | E36: =Orçamento!AA563 -> 0
B37: =Orçamento!O564 -> x. | C37: =Orçamento!P564 -> ADMINISTRAÇÃO | D37: =Orçamento!X564 -> 0 | E37: =Orçamento!AA564 -> 0
B38: =Orçamento!O565 -> y. | C38: =Orçamento!P565 -> PINTURA | D38: =Orçamento!X565 -> 0 | E38: =Orçamento!AA565 -> 0
B39: =Orçamento!O566 -> z. | C39: =Orçamento!P566 -> DIVERSOS | D39: =Orçamento!X566 -> 0 | E39: =Orçamento!AA566 -> 0
A40: F | B40: TOTAL GERAL DO ORÇAMENTO (R$) C/BDI | D40: =SUM(D14:D39) -> 0 | E40: =SUM(E14:E39) -> 0

Sheet Parc Maior Relev
B3: UNIDADE ESCOLAR | E3: CÓDIGO INEP
B4: =Orçamento!$O$4 -> CENTRO DE ENSINO EM PERÍODO INTEGRAL POLIVALENTE ANTÔNIO C PANIAGO | E4: =Orçamento!$X$4 -> 52053385
B6: OBRA | E6: CIDADE
B7: =Orçamento!$O$7 -> REFORMA E AMPLIAÇÃO | E7: =Orçamento!$X$7 -> MINEIROS
B9: CRE | E9: ÁREA TOTAL CONSTRUÍDA (M²)
B10: =Orçamento!$O$10 -> MINEIROS | E10: =Orçamento!$S$13 -> 3442.68
A11: FILTRO
B12: PARCELA DE MAIOR RELEVÂNCIA
B13: CÓDIGO | C13: SERVIÇO | D13: DESCRIÇÃO | E13: UNID | F13: QUANT | G13: PARC. MAIOR RELEV (100%)
A14: =IF(F14>0,"F","") -> F | B14: 70000 | C14: SUBESTAÇÃO | D14: SUBESTAÇÃO | E14: KVA | F14: 112.5 | G14: =F14 -> 112.5
B15: CÓDIGO | C15: SERVIÇO | D15: DESCRIÇÃO | E15: UNID | F15: QUANT | G15: PARC. MAIOR RELEV (50%)
A16: =IF(F16>0,"F","") ->  | B16: 160000 | C16: COBERTURAS | D16: TELHA CERÂMICA | E16: M2 | F16: =Orçamento!V382+Orçamento!V500 -> 0 | G16: =F16*0.5 -> 0
A17: =IF(F17>0,"F","") ->  | B17: 220000 | C17: REVESTIMENTO DE PISO | D17: GRANITINA | E17: M2 | F17: =Orçamento!V213+Orçamento!V399+Orçamento!V510 -> 0 | G17: =F17*0.5 -> 0
C18: =IFERROR(VLOOKUP(B18,Orçamento!$O$541:$P$566,2,FALSE),"(inserir código ao lado)") -> (inserir código ao lado) | E18: =IFERROR(VLOOKUP($D18,Orçamento!$R$522:$Y$522,2,FALSE),"-") -> - | F18: =SUMIF(Orçamento!$R$522:$R$522,'Parc Maior Relev'!D18,Orçamento!$T$522:$T$522) -> 0 | G18: 0
C19: =IFERROR(VLOOKUP(B19,Orçamento!$O$541:$P$566,2,FALSE),"(inserir código ao lado)") -> (inserir código ao lado) | E19: =IFERROR(VLOOKUP($D19,Orçamento!$R$522:$Y$522,2,FALSE),"-") -> - | F19: =SUMIF(Orçamento!$R$522:$R$522,'Parc Maior Relev'!D19,Orçamento!$T$522:$T$522) -> 0 | G19: 0
A20: F
A21: F | B21: (*) Para os fins do inciso I dp § 1º do Art. 30 da Lei Federal 8.666/93, são consideradas parcelas de maior relevância técnica as execuções apresentadas
A22: F

Sheet Composições
A4: UNIDADE ESCOLAR | H4: CÓDIGO INEP
A5: =Orçamento!$O$4 -> CENTRO DE ENSINO EM PERÍODO INTEGRAL POLIVALENTE ANTÔNIO C PANIAGO | H5: =Orçamento!$X$4 -> 52053385
A7: OBRA | H7: CIDADE
A8: =Orçamento!$O$7 -> REFORMA E AMPLIAÇÃO | H8: =Orçamento!$X$7 -> MINEIROS
A10: CRE | D10: ENDEREÇO | H10: REFERÊNCIA AGETOP
A11: =Orçamento!$O$10 -> MINEIROS | D11: =Orçamento!$R$10 -> RUA 6 A, MARTINS, CEP:75832-028 | H11: =Orçamento!$X$10 -> DEZ/18 | I11: =Orçamento!$Y$10 -> ONERADA
A13: DATA | D13: ÁREA TOTAL CONSTRUÍDA (M²) | H13: REFERÊNCIA SINAPI
A14: =Orçamento!$S$7 -> 2020-04-23 | D14: =Orçamento!$S$13 -> 3442.68 | H14: =Orçamento!$X$13 -> AGO/19 | I14: =Orçamento!$Y$13 -> ONERADA
A16: COMPOSIÇÕES DE CUSTOS UNITÁRIOS - SEE-GO
A17: 17 | B17: FONTE | C17: CÓDIGO | D17: DESCRIÇÃO | E17: UNIDADE | F17: COEFIC. | G17: CUSTO UNITÁRIO | I17: CUSTO TOTAL (A) + (B) + (C) + (D) + (E)
G18: DESONERADO | H18: NÃO DESONER. | I18: DESONERADO | J18: NÃO DESONER.
B19: COMPOSIÇÃO | C19: COMP 017_SEE | D19: REDUCAO GIRATÓRIA TIPO STORZ LATAO P/ INST. PREDIAL COMBATE A INCENDIO ENGATE RAPIDO 2.1/2" X 1.1/2" | E19: UN | G19: - | H19: - | I19: 99.14 | J19: 99.69
B20: AGETOP_I | C20: 8 | D20: AJUDANTE | E20: h | F20: 0.16 | G20: 8.2 | H20: 9.51 | I20: 1.31 | J20: 1.52
B21: AGETOP_I | C21: 11 | D21: ENCANADOR | E21: h | F21: 0.16 | G21: 13.4 | H21: 15.53 | I21: 2.14 | J21: 2.48
G22: 0 | H22: 0 | I22: 0 | J22: 0
B23: MÃO DE OBRA (B) - TOTAL | I23: 3.45 | J23: 4
B24: SINAPI_I | C24: 20972 | D24: REDUCAO FIXA TIPO STORZ, ENGATE RAPIDO 2.1/2" X 1.1/2", EM LATAO, PARA INSTALACAO PREDIAL COMBATE A INCENDIO PREDIAL | E24: UN | F24: 1 | G24: 95.69 | H24: 95.69 | I24: 95.69 | J24: 95.69
G25: 0 | H25: 0 | I25: 0 | J25: 0
G26: 0 | H26: 0 | I26: 0 | J26: 0
B27: MATERIAL (C) - TOTAL | I27: 95.69 | J27: 95.69
A29: 18 | B29: FONTE | C29: CÓDIGO | D29: DESCRIÇÃO | E29: UNIDADE | F29: COEFIC. | G29: CUSTO UNITÁRIO | I29: CUSTO TOTAL (A) + (B) + (C) + (D) + (E)
G30: DESONERADO | H30: NÃO DESONER. | I30: DESONERADO | J30: NÃO DESONER.
B31: COMPOSIÇÃO | C31: COMP 018_SEE | D31: CHAVE DUPLA P/ CONEXÕES TIPO STORZ EM LATÃO ENGATE RÁPIDO 1 1/2" X 2 1/2" | E31: UN | G31: - | H31: - | I31: 14.76 | J31: 15.08
B32: AGETOP_I | C32: 11 | D32: ENCANADOR | E32: h | F32: 0.15 | G32: 13.4 | H32: 15.53 | I32: 2.01 | J32: 2.33
G33: 0 | H33: 0 | I33: 0 | J33: 0
G34: 0 | H34: 0 | I34: 0 | J34: 0
B35: MÃO DE OBRA (B) - TOTAL | I35: 2.01 | J35: 2.33
B36: SINAPI_I | C36: 20971 | D36: CHAVE DUPLA PARA CONEXOES TIPO STORZ, ENGATE RAPIDO 1 1/2" X 2 1/2", EM LATAO, PARA INSTALACAO PREDIAL COMBATE A INCENDIO | E36: UN | F36: 1 | G36: 12.75 | H36: 12.75 | I36: 12.75 | J36: 12.75
G37: 0 | H37: 0 | I37: 0 | J37: 0
G38: 0 | H38: 0 | I38: 0 | J38: 0
B39: MATERIAL (C) - TOTAL | I39: 12.75 | J39: 12.75
A41: 87 | B41: FONTE | C41: CÓDIGO | D41: DESCRIÇÃO | E41: UNIDADE | F41: COEFIC. | G41: CUSTO UNITÁRIO | I41: CUSTO TOTAL (A) + (B) + (C) + (D) + (E)
G42: DESONERADO | H42: NÃO DESONER. | I42: DESONERADO | J42: NÃO DESONER.
B43: COMPOSIÇÃO | C43: COMP 087_SEE | D43: REGISTRO DE GAVETA COM HASTE ASCENDENTE DE BRONZE 2 1/2" | E43: UN | I43: 257.3 | J43: 261.26
B44: AGETOP_I | C44: 8 | D44: AJUDANTE | E44: h | F44: 1.15 | G44: 8.2 | H44: 9.51 | I44: 9.43 | J44: 10.94
B45: AGETOP_I | C45: 11 | D45: ENCANADOR | E45: h | F45: 1.15 | G45: 13.4 | H45: 15.53 | I45: 15.41 | J45: 17.86
G46: 0 | H46: 0 | I46: 0 | J46: 0
B47: MÃO DE OBRA (B) - TOTAL | I47: 24.84 | J47: 28.8
B48: AGETOP_I | C48: H689 | D48: FITA VEDAROSCA 12 MM | E48: m | F48: 2.82 | G48: 0.28 | H48: 0.28 | I48: 0.79 | J48: 0.79
B49: COTAÇÃO | C49: COT 017_SEE | D49: REGISTRO DE GAVETA COM HASTE ASCENDENTE DE BRONZE 2 1/2" | E49: UN | F49: 1 | G49: 231.6666667 | H49: 231.6666667 | I49: 231.67 | J49: 231.67
G50: 0 | H50: 0 | I50: 0 | J50: 0
B51: MATERIAL (C) - TOTAL | I51: 232.46 | J51: 232.46
A53: 30 | B53: FONTE | C53: CÓDIGO | D53: DESCRIÇÃO | E53: UNIDADE | F53: COEFIC. | G53: CUSTO UNITÁRIO | I53: CUSTO TOTAL (A) + (B) + (C) + (D) + (E)
G54: DESONERADO | H54: NÃO DESONER. | I54: DESONERADO | J54: NÃO DESONER.
B55: COMPOSIÇÃO | C55: COMP 030_SEE | D55: COTOVELO DE FERRO GALV. 90° X 2 1/2" | E55: UN | I55: 69.16 | J55: 72.33
B56: AGETOP_I | C56: 8 | D56: AJUDANTE | E56: h | F56: 0.92 | G56: 8.2 | H56: 9.51 | I56: 7.54 | J56: 8.75
B57: AGETOP_I | C57: 11 | D57: ENCANADOR | E57: h | F57: 0.92 | G57: 13.4 | H57: 15.53 | I57: 12.33 | J57: 14.29
B58: MÃO DE OBRA (B) - TOTAL | I58: 19.87 | J58: 23.04
B59: SINAPI_I | C59: 3470 | D59: COTOVELO 90 GRAUS DE FERRO GALVANIZADO, COM ROSCA BSP, DE 2 1/2" | E59: UN | F59: 1 | G59: 48.73 | H59: 48.73 | I59: 48.73 | J59: 48.73
B60: AGETOP_I | C60: H689 | D60: FITA VEDAROSCA 12 MM | E60: m | F60: 2 | G60: 0.28 | H60: 0.28 | I60: 0.56 | J60: 0.56
B61: MATERIAL (C) - TOTAL | I61: 49.29 | J61: 49.29
A63: 77 | B63: FONTE | C63: CÓDIGO | D63: DESCRIÇÃO | E63: UNIDADE | F63: COEFIC. | G63: CUSTO UNITÁRIO | I63: CUSTO TOTAL (A) + (B) + (C) + (D) + (E)
G64: DESONERADO | H64: NÃO DESONER. | I64: DESONERADO | J64: NÃO DESONER.
B65: COMPOSIÇÃO | C65: COMP 077_SEE | D65: UNIAO FERRO GALV C/ASSENTO CONICO BRONZE 2 1/2" | E65: UN | I65: 148.3 | J65: 149.67
B66: AGETOP_I | C66: 8 | D66: AJUDANTE | E66: h | F66: 0.4 | G66: 8.2 | H66: 9.51 | I66: 3.28 | J66: 3.8
B67: AGETOP_I | C67: 11 | D67: ENCANADOR | E67: h | F67: 0.4 | G67: 13.4 | H67: 15.53 | I67: 5.36 | J67: 6.21
B68: MÃO DE OBRA (B) - TOTAL | I68: 8.64 | J68: 10.01
B69: AGETOP_I | C69: H689 | D69: FITA VEDAROSCA 12 MM | E69: m | F69: 2.4 | G69: 0.28 | H69: 0.28 | I69: 0.67 | J69: 0.67
B70: SINAPI_I | C70: 12427 | D70: UNIAO COM ASSENTO CONICO DE BRONZE, DIAMETRO 2 1/2" | E70: UN | F70: 1 | G70: 138.99 | H70: 138.99 | I70: 138.99 | J70: 138.99
B71: MATERIAL (C) - TOTAL | I71: 139.66 | J71: 139.66
A73: 347 | B73: FONTE | C73: CÓDIGO | D73: DESCRIÇÃO | E73: UNIDADE | F73: COEFIC. | G73: CUSTO UNITÁRIO | I73: CUSTO TOTAL (A) + (B) + (C) + (D) + (E)
G74: DESONERADO | H74: NÃO DESONER. | I74: DESONERADO | J74: NÃO DESONER.
B75: COMPOSIÇÃO | C75: COMP 347_SEE | D75: ADAPTADOR PVC SOLDAVEL, COM FLANGES LIVRES, 75 MM X 2 1/2", PARA CAIXA D' AGUA | E75: UN | I75: 121.1 | J75: 121.57
B76: AGETOP_I | C76: 11 | D76: ENCANADOR | E76: h | F76: 0.14 | G76: 13.4 | H76: 15.53 | I76: 1.88 | J76: 2.17
B77: AGETOP_I | C77: 8 | D77: AJUDANTE | E77: h | F77: 0.14 | G77: 8.2 | H77: 9.51 | I77: 1.15 | J77: 1.33
G78: 0 | H78: 0 | I78: 0 | J78: 0
B79: MÃO DE OBRA (B) - TOTAL | I79: 3.03 | J79: 3.5
B80: SINAPI_I | C80: 83 | D80: ADAPTADOR PVC SOLDAVEL, COM FLANGES LIVRES, 75 MM X 2 1/2", PARA CAIXA D' AGUA | E80: UN | F80: 1 | G80: 117.54 | H80: 117.54 | I80: 117.54 | J80: 117.54
B81: AGETOP_I | C81: H689 | D81: FITA VEDAROSCA 12 MM | E81: m | F81: 1.88 | G81: 0.28 | H81: 0.28 | I81: 0.53 | J81: 0.53
G82: 0 | H82: 0 | I82: 0 | J82: 0
B83: MATERIAL (C) - TOTAL | I83: 118.07 | J83: 118.07
A85: 22 | B85: FONTE | C85: CÓDIGO | D85: DESCRIÇÃO | E85: UNIDADE | F85: COEFIC. | G85: CUSTO UNITÁRIO | I85: CUSTO TOTAL (A) + (B) + (C) + (D) + (E)
G86: DESONERADO | H86: NÃO DESONER. | I86: DESONERADO | J86: NÃO DESONER.
B87: COMPOSIÇÃO | C87: COMP 022_SEE | D87: TAMPÃO FOFO 40X50CM C/INSCRIÇÃO | E87: UN | G87: - | H87: - | I87: 199.83 | J87: 200.15
B88: AGETOP_I | C88: 11 | D88: ENCANADOR | E88: h | F88: 0.15 | G88: 13.4 | H88: 15.53 | I88: 2.01 | J88: 2.33
G89: 0 | H89: 0 | I89: 0 | J89: 0
G90: 0 | H90: 0 | I90: 0 | J90: 0
B91: MÃO DE OBRA (B) - TOTAL | I91: 2.01 | J91: 2.33
B92: SINAPI_I | C92: 11293 | D92: TAMPAO FOFO SIMPLES COM BASE, CLASSE A15 CARGA MAX 1,5 T, 400 X 500 MM, COM INSCRICAO INCENDIO | E92: UN | F92: 1 | G92: 197.82 | H92: 197.82 | I92: 197.82 | J92: 197.82
G93: 0 | H93: 0 | I93: 0 | J93: 0
G94: 0 | H94: 0 | I94: 0 | J94: 0
B95: MATERIAL (C) - TOTAL | I95: 197.82 | J95: 197.82
A97: 546 | B97: FONTE | C97: CÓDIGO | D97: DESCRIÇÃO | E97: UNID | F97: COEFIC. | G97: CUSTO UNITÁRIO | I97: CUSTO TOTAL (A) + (B) + (C) + (D) + (E)
G98: DESONERADO | H98: NÃO DESONER. | I98: DESONERADO | J98: NÃO DESONER.
B99: COMPOSIÇÃO | C99: COMP 546_SEE | D99: BUJÃO DE REBORDO 2.1/2" | E99: UN | F99: - | G99: - | H99: - | I99: 16.51 | J99: 16.76
B100: AGETOP_I | C100: 8 | D100: AJUDANTE | E100: h | F100: 0.07 | G100: 8.2 | H100: 9.51 | I100: 0.57 | J100: 0.67
B101: AGETOP_I | C101: 11 | D101: ENCANADOR | E101: h | F101: 0.07 | G101: 13.4 | H101: 15.53 | I101: 0.94 | J101: 1.09
G102: 0 | H102: 0 | I102: 0 | J102: 0
B103: MÃO DE OBRA (B) - TOTAL | I103: 1.51 | J103: 1.76
B104: COTAÇÃO | C104: COT 286_SEE | D104: BUJÃO DE REBORDO 2.1/2" | E104: UN | F104: 1 | G104: 15 | H104: 15 | I104: 15 | J104: 15
G105: 0 | H105: 0 | I105: 0 | J105: 0
G106: 0 | H106: 0 | I106: 0 | J106: 0
B107: MATERIAL (C) - TOTAL | I107: 15 | J107: 15
A109: 186 | B109: FONTE | C109: CÓDIGO | D109: DESCRIÇÃO | E109: UNIDADE | F109: COEFIC. | G109: CUSTO UNITÁRIO | I109: CUSTO TOTAL (A) + (B) + (C) + (D) + (E)
G110: DESONERADO | H110: NÃO DESONER. | I110: DESONERADO | J110: NÃO DESONER.
B111: COMPOSIÇÃO | C111: COMP 186_SEE | D111: BOTOEIRA BOMBA DE INCÊNDIO C/ MARTELO CONVENCIONAL/ ANALÓGICA | E111: UN | I111: 85.1 | J111: 88.54
B112: AGETOP_I | C112: 8 | D112: AJUDANTE | E112: h | F112: 1 | G112: 8.2 | H112: 9.51 | I112: 8.2 | J112: 9.51
B113: AGETOP_I | C113: 12 | D113: ELETRICISTA | E113: h | F113: 1 | G113: 13.4 | H113: 15.53 | I113: 13.4 | J113: 15.53
G114: 0 | H114: 0 | I114: 0 | J114: 0
B115: MÃO DE OBRA (B) - TOTAL | I115: 21.6 | J115: 25.04
B116: COTAÇÃO | C116: COT 088_SEE | D116: BOTOEIRA BOMBA DE INCÊNDIO C/ MARTELO CONVENCIONAL/ ANALÓGICA | E116: UN | F116: 1 | G116: 63.5 | H116: 63.5 | I116: 63.5 | J116: 63.5
G117: 0 | H117: 0 | I117: 0 | J117: 0
G118: 0 | H118: 0 | I118: 0 | J118: 0
B119: MATERIAL (C) - TOTAL | I119: 63.5 | J119: 63.5
A121: 188 | B121: FONTE | C121: CÓDIGO | D121: DESCRIÇÃO | E121: UNIDADE | F121: COEFIC. | G121: CUSTO UNITÁRIO | I121: CUSTO TOTAL (A) + (B) + (C) + (D) + (E)
G122: DESONERADO | H122: NÃO DESONER. | I122: DESONERADO | J122: NÃO DESONER.
B123: COMPOSIÇÃO | C123: COMP 188_SEE | D123: ACIONADOR MANUAL DE ALARME | E123: UN | I123: 100.61 | J123: 103.36
B124: AGETOP_I | C124: 8 | D124: AJUDANTE | E124: h | F124: 0.8 | G124: 8.2 | H124: 9.51 | I124: 6.56 | J124: 7.61
B125: AGETOP_I | C125: 12 | D125: ELETRICISTA | E125: h | F125: 0.8 | G125: 13.4 | H125: 15.53 | I125: 10.72 | J125: 12.42
G126: 0 | H126: 0 | I126: 0 | J126: 0
B127: MÃO DE OBRA (B) - TOTAL | I127: 17.28 | J127: 20.03
B128: COTAÇÃO | C128: COT 090_SEE | D128: ACIONADOR MANUAL DE ALARME | E128: UN | F128: 1 | G128: 83.33333333 | H128: 83.33333333 | I128: 83.33 | J128: 83.33
G129: 0 | H129: 0 | I129: 0 | J129: 0
G130: 0 | H130: 0 | I130: 0 | J130: 0
B131: MATERIAL (C) - TOTAL | I131: 83.33 | J131: 83.33
A133: 190 | B133: FONTE | C133: CÓDIGO | D133: DESCRIÇÃO | E133: UNIDADE | F133: COEFIC. | G133: CUSTO UNITÁRIO | I133: CUSTO TOTAL (A) + (B) + (C) + (D) + (E)
G134: DESONERADO | H134: NÃO DESONER. | I134: DESONERADO | J134: NÃO DESONER.
B135: COMPOSIÇÃO | C135: COMP 190_SEE | D135: CENTRAL DE DETECÇÃO E ALARME DE 40 SETORES COM BATERIA | E135: UN | I135: 1136.13 | J135: 1163.65
B136: AGETOP_I | C136: 8 | D136: AJUDANTE | E136: h | F136: 8 | G136: 8.2 | H136: 9.51 | I136: 65.6 | J136: 76.08
B137: AGETOP_I | C137: 12 | D137: ELETRICISTA | E137: h | F137: 8 | G137: 13.4 | H137: 15.53 | I137: 107.2 | J137: 124.24
G138: 0 | H138: 0 | I138: 0 | J138: 0
B139: MÃO DE OBRA (B) - TOTAL | I139: 172.8 | J139: 200.32
B140: COTAÇÃO | C140: COT 092_SEE | D140: CENTRAL DE DETECÇÃO E ALARME DE 40 SETORES COM BATERIA (PREÇO MÉDIO) | E140: UN | F140: 1 | G140: 963.3333333 | H140: 963.3333333 | I140: 963.33 | J140: 963.33
G141: 0 | H141: 0 | I141: 0 | J141: 0
G142: 0 | H142: 0 | I142: 0 | J142: 0
B143: MATERIAL (C) - TOTAL | I143: 963.33 | J143: 963.33
A145: 24 | B145: FONTE | C145: CÓDIGO | D145: DESCRIÇÃO | E145: UNIDADE | F145: COEFIC. | G145: CUSTO UNITÁRIO | I145: CUSTO TOTAL (A) + (B) + (C) + (D) + (E)
G146: DESONERADO | H146: NÃO DESONER. | I146: DESONERADO | J146: NÃO DESONER.
B147: COMPOSIÇÃO | C147: COMP 024_SEE | D147: SINALIZADOR FOTOLUMINESCENTE PARA EXTINTOR | E147: UN | G147: - | H147: - | I147: 24.11 | J147: 24.23
B148: AGETOP_I | C148: 5 | D148: SERVENTE | E148: h | F148: 0.09 | G148: 8.2 | H148: 9.51 | I148: 0.74 | J148: 0.86
G149: 0 | H149: 0 | I149: 0 | J149: 0
G150: 0 | H150: 0 | I150: 0 | J150: 0
B151: MÃO DE OBRA (B) - TOTAL | I151: 0.74 | J151: 0.86
B152: AGETOP_I | C152: 3070 | D152: BUCHA DE NYLON S-6 | E152: un | F152: 2 | G152: 0.04 | H152: 0.04 | I152: 0.08 | J152: 0.08
B153: AGETOP_I | C153: 3393 | D153: PARAFUSO P/BUCHA S-6 | E153: un | F153: 2 | G153: 0.08 | H153: 0.08 | I153: 0.16 | J153: 0.16
B154: SINAPI_I | C154: 37556 | D154: PLACA DE SINALIZACAO DE SEGURANCA CONTRA INCENDIO, FOTOLUMINESCENTE, QUADRADA, *20 X 20* CM, EM PVC *2* MM ANTI-CHAMAS (SIMBOLOS, CORES E PICTOGRAMAS CONFORME NBR 13434) | E154: UN | F154: 1 | G154: 23.13 | H154: 23.13 | I154: 23.13 | J154: 23.13
B155: MATERIAL (C) - TOTAL | I155: 23.37 | J155: 23.37
A157: 25 | B157: FONTE | C157: CÓDIGO | D157: DESCRIÇÃO | E157: UNIDADE | F157: COEFIC. | G157: CUSTO UNITÁRIO | I157: CUSTO TOTAL (A) + (B) + (C) + (D) + (E)
G158: DESONERADO | H158: NÃO DESONER. | I158: DESONERADO | J158: NÃO DESONER.
B159: COMPOSIÇÃO | C159: COMP 025_SEE | D159: SINALIZADOR FOTOLUMINESCENTE DE EMERGÊNCIA | E159: UN | G159: - | H159: - | I159: 24.11 | J159: 24.23
B160: AGETOP_I | C160: 5 | D160: SERVENTE | E160: h | F160: 0.09 | G160: 8.2 | H160: 9.51 | I160: 0.74 | J160: 0.86
B161: MÃO DE OBRA (B) - TOTAL | I161: 0.74 | J161: 0.86
B162: AGETOP_I | C162: 3070 | D162: BUCHA DE NYLON S-6 | E162: un | F162: 2 | G162: 0.04 | H162: 0.04 | I162: 0.08 | J162: 0.08
B163: AGETOP_I | C163: 3393 | D163: PARAFUSO P/BUCHA S-6 | E163: un | F163: 2 | G163: 0.08 | H163: 0.08 | I163: 0.16 | J163: 0.16
B164: SINAPI_I | C164: 37556 | D164: PLACA DE SINALIZACAO DE SEGURANCA CONTRA INCENDIO, FOTOLUMINESCENTE, QUADRADA, *20 X 20* CM, EM PVC *2* MM ANTI-CHAMAS (SIMBOLOS, CORES E PICTOGRAMAS CONFORME NBR 13434) | E164: UN | F164: 1 | G164: 23.13 | H164: 23.13 | I164: 23.13 | J164: 23.13
B165: MATERIAL (C) - TOTAL | I165: 23.37 | J165: 23.37
A167: 277 | B167: FONTE | C167: CÓDIGO | D167: DESCRIÇÃO | E167: UNIDADE | F167: COEFIC. | G167: CUSTO UNITÁRIO | I167: CUSTO TOTAL (A) + (B) + (C) + (D) + (E)
G168: DESONERADO | H168: NÃO DESONER. | I168: DESONERADO | J168: NÃO DESONER.
B169: COMPOSIÇÃO | C169: COMP 277_SEE | D169: MARCAÇÃO NO PISO - 1X1 M PARA EXTINTOR | E169: M2 | I169: 28.81 | J169: 28.88
B170: AGETOP_I | C170: 5 | D170: SERVENTE | E170: h | F170: 0.0333 | G170: 8.2 | H170: 9.51 | I170: 0.27 | J170: 0.32
G171: 0 | H171: 0 | I171: 0 | J171: 0
G172: 0 | H172: 0 | I172: 0 | J172: 0
B173: MÃO DE OBRA (B) - TOTAL | I173: 0.27 | J173: 0.32
B174: SINAPI_I | C174: 5318 | D174: SOLVENTE DILUENTE A BASE DE AGUARRAS | E174: L | F174: 0.13 | G174: 11.78 | H174: 11.78 | I174: 1.53 | J174: 1.53
B175: SINAPI | C175: 5824 | D175: CAMINHÃO TOCO, PBT 16.000 KG, CARGA ÚTIL MÁX. 10.685 KG, DIST. ENTRE EIXOS 4,8 M, POTÊNCIA 189 CV, INCLUSIVE CARROCERIA FIXA ABERTA DE MADEIRA P/ TRANSPORTE GERAL DE CARGA SECA, DIMEN. APROX. 2,5 X 7,00 X 0,50 M - CHP DIURNO. AF_06/2014 | E175: CHP | F175: 0.0033 | G175: 135.91 | H175: 139.12 | I175: 0.45 | J175: 0.46
B176: SINAPI_I | C176: 7343 | D176: TINTA A BASE DE RESINA ACRILICA, PARA SINALIZACAO HORIZONTAL VIARIA (NBR 11862) | E176: L | F176: 0.6 | G176: 11.38 | H176: 11.38 | I176: 6.83 | J176: 6.83
B177: SINAPI_I | C177: 7348 | D177: TINTA ACRILICA PREMIUM PARA PISO | E177: L | F177: 0.03 | G177: 12.4 | H177: 12.4 | I177: 0.37 | J177: 0.37
B178: SINAPI_I | C178: 25972 | D178: MICROESFERAS DE VIDRO PARA SINALIZACAO HORIZONTAL VIARIA, TIPO I-B (PREMIX) - NBR 16184 | E178: KG | F178: 2.14 | G178: 8.88 | H178: 8.88 | I178: 19 | J178: 19
B179: SINAPI | C179: 95133 | D179: MÁQUINA DEMARCADORA DE FAIXA DE TRÁFEGO À FRIO, AUTOPROPELIDA, POTÊNCIA 38 HP - CHP DIURNO. AF_07/2016 | E179: CHP | F179: 0.0033 | G179: 109.81 | H179: 113.39 | I179: 0.36 | J179: 0.37
B180: MATERIAL (C) - TOTAL | I180: 28.54 | J180: 28.56
A182: 235 | B182: FONTE | C182: CÓDIGO | D182: DESCRIÇÃO | E182: UNIDADE | F182: COEFIC. | G182: CUSTO UNITÁRIO | I182: CUSTO TOTAL (A) + (B) + (C) + (D) + (E)
G183: DESONERADO | H183: NÃO DESONER. | I183: DESONERADO | J183: NÃO DESONER.
B184: COMPOSIÇÃO | C184: COMP 235_SEE | D184: PLACA DE SINALIZAÇÃO EM PVC COD 01 - (300X300) PROIBIDO FUMAR | E184: UN | I184: 24.11 | J184: 24.23
B185: AGETOP_I | C185: 5 | D185: SERVENTE | E185: h | F185: 0.09 | G185: 8.2 | H185: 9.51 | I185: 0.74 | J185: 0.86
G186: 0 | H186: 0 | I186: 0 | J186: 0
G187: 0 | H187: 0 | I187: 0 | J187: 0
B188: MÃO DE OBRA (B) - TOTAL | I188: 0.74 | J188: 0.86
B189: AGETOP_I | C189: 3070 | D189: BUCHA DE NYLON S-6 | E189: un | F189: 2 | G189: 0.04 | H189: 0.04 | I189: 0.08 | J189: 0.08
B190: AGETOP_I | C190: 3393 | D190: PARAFUSO P/BUCHA S-6 | E190: un | F190: 2 | G190: 0.08 | H190: 0.08 | I190: 0.16 | J190: 0.16
B191: SINAPI_I | C191: 37556 | D191: PLACA DE SINALIZACAO DE SEGURANCA CONTRA INCENDIO, FOTOLUMINESCENTE, QUADRADA, *20 X 20* CM, EM PVC *2* MM ANTI-CHAMAS (SIMBOLOS, CORES E PICTOGRAMAS CONFORME NBR 13434) | E191: UN | F191: 1 | G191: 23.13 | H191: 23.13 | I191: 23.13 | J191: 23.13
B192: MATERIAL (C) - TOTAL | I192: 23.37 | J192: 23.37
A194: 236 | B194: FONTE | C194: CÓDIGO | D194: DESCRIÇÃO | E194: UNIDADE | F194: COEFIC. | G194: CUSTO UNITÁRIO | I194: CUSTO TOTAL (A) + (B) + (C) + (D) + (E)
G195: DESONERADO | H195: NÃO DESONER. | I195: DESONERADO | J195: NÃO DESONER.
B196: COMPOSIÇÃO | C196: COMP 236_SEE | D196: PLACA DE SINALIZAÇÃO EM PVC COD 06 - (300X300) PERIGO INFLAMÁVEL | E196: UN | I196: 24.11 | J196: 24.23
B197: AGETOP_I | C197: 5 | D197: SERVENTE | E197: h | F197: 0.09 | G197: 8.2 | H197: 9.51 | I197: 0.74 | J197: 0.86
G198: 0 | H198: 0 | I198: 0 | J198: 0
G199: 0 | H199: 0 | I199: 0 | J199: 0
B200: MÃO DE OBRA (B) - TOTAL | I200: 0.74 | J200: 0.86
B201: AGETOP_I | C201: 3070 | D201: BUCHA DE NYLON S-6 | E201: un | F201: 2 | G201: 0.04 | H201: 0.04 | I201: 0.08 | J201: 0.08
B202: AGETOP_I | C202: 3393 | D202: PARAFUSO P/BUCHA S-6 | E202: un | F202: 2 | G202: 0.08 | H202: 0.08 | I202: 0.16 | J202: 0.16
B203: SINAPI_I | C203: 37556 | D203: PLACA DE SINALIZACAO DE SEGURANCA CONTRA INCENDIO, FOTOLUMINESCENTE, QUADRADA, *20 X 20* CM, EM PVC *2* MM ANTI-CHAMAS (SIMBOLOS, CORES E PICTOGRAMAS CONFORME NBR 13434) | E203: UN | F203: 1 | G203: 23.13 | H203: 23.13 | I203: 23.13 | J203: 23.13
B204: MATERIAL (C) - TOTAL | I204: 23.37 | J204: 23.37
A206: 411 | B206: FONTE | C206: CÓDIGO | D206: DESCRIÇÃO | E206: UNIDADE | F206: COEFIC. | G206: CUSTO UNITÁRIO | I206: CUSTO TOTAL (A) + (B) + (C) + (D) + (E)
G207: DESONERADO | H207: NÃO DESONER. | I207: DESONERADO | J207: NÃO DESONER.
B208: COMPOSIÇÃO | C208: COMP 411_SEE | D208: PLACA DE SINALIZAÇÃO EM PVC COD 13 - (316X158) SAÍDA DE EMERGÊNCIA | E208: UN | I208: 29.35 | J208: 29.47
B209: AGETOP_I | C209: 5 | D209: SERVENTE | E209: h | F209: 0.09 | G209: 8.2 | H209: 9.51 | I209: 0.74 | J209: 0.86
G210: 0 | H210: 0 | I210: 0 | J210: 0
G211: 0 | H211: 0 | I211: 0 | J211: 0
B212: MÃO DE OBRA (B) - TOTAL | I212: 0.74 | J212: 0.86
B213: AGETOP_I | C213: 3070 | D213: BUCHA DE NYLON S-6 | E213: un | F213: 2 | G213: 0.04 | H213: 0.04 | I213: 0.08 | J213: 0.08
B214: AGETOP_I | C214: 3393 | D214: PARAFUSO P/BUCHA S-6 | E214: un | F214: 2 | G214: 0.08 | H214: 0.08 | I214: 0.16 | J214: 0.16
B215: SINAPI_I | C215: 37559 | D215: PLACA DE SINALIZACAO DE SEGURANCA CONTRA INCENDIO, FOTOLUMINESCENTE, RETANGULAR, *12 X 40* CM, EM PVC *2* MM ANTI-CHAMAS (SIMBOLOS, CORES E PICTOGRAMAS CONFORME NBR 13434) | E215: UN | F215: 1 | G215: 28.37 | H215: 28.37 | I215: 28.37 | J215: 28.37
B216: MATERIAL (C) - TOTAL | I216: 28.61 | J216: 28.61
A218: 412 | B218: FONTE | C218: CÓDIGO | D218: DESCRIÇÃO | E218: UNIDADE | F218: COEFIC. | G218: CUSTO UNITÁRIO | I218: CUSTO TOTAL (A) + (B) + (C) + (D) + (E)
G219: DESONERADO | H219: NÃO DESONER. | I219: DESONERADO | J219: NÃO DESONER.
B220: COMPOSIÇÃO | C220: COMP 412_SEE | D220: PLACA DE SINALIZAÇÃO EM PVC COD 17 - (316X158) MENSAGEM "SAÍDA" | E220: UN | I220: 29.35 | J220: 29.47
B221: AGETOP_I | C221: 5 | D221: SERVENTE | E221: h | F221: 0.09 | G221: 8.2 | H221: 9.51 | I221: 0.74 | J221: 0.86
G222: 0 | H222: 0 | I222: 0 | J222: 0
G223: 0 | H223: 0 | I223: 0 | J223: 0
B224: MÃO DE OBRA (B) - TOTAL | I224: 0.74 | J224: 0.86
... 136 more rows

Sheet Cotações
A4: UNIDADE ESCOLAR | H4: CÓDIGO INEP
A5: =Orçamento!$O$4 -> CENTRO DE ENSINO EM PERÍODO INTEGRAL POLIVALENTE ANTÔNIO C PANIAGO | H5: =Orçamento!$X$4 -> 52053385
A7: OBRA | H7: CIDADE
A8: =Orçamento!$O$7 -> REFORMA E AMPLIAÇÃO | H8: =Orçamento!$X$7 -> MINEIROS
A10: CRE | D10: ENDEREÇO | H10: REFERÊNCIA AGETOP
A11: =Orçamento!$O$10 -> MINEIROS | D11: =Orçamento!$R$10 -> RUA 6 A, MARTINS, CEP:75832-028 | H11: =Orçamento!$X$10 -> DEZ/18 | I11: =Orçamento!$Y$10 -> ONERADA
A13: DATA | D13: ÁREA TOTAL CONSTRUÍDA (M²) | H13: REFERÊNCIA SINAPI
A14: =Orçamento!$S$7 -> 2020-04-23 | D14: =Orçamento!$S$13 -> 3442.68 | H14: =Orçamento!$X$13 -> AGO/19 | I14: =Orçamento!$Y$13 -> ONERADA
A16: COTAÇÕES DE PREÇOS - SEE-GO
B17: FONTE | C17: CÓDIGO | D17: DESCRIÇÃO | E17: UNIDADE | F17: MÉDIA | H17: ÍNDICE RETROAÇÃO
F18: DESONERADA | G18: ONERADA
A19: 17 | B19: COTAÇÃO | C19: COT 017_SEE | D19: REGISTRO DE GAVETA COM HASTE ASCENDENTE DE BRONZE 2 1/2" | E19: UN | F19: 231.6666667 | G19: 231.6666667
C20: EMPRESA | D20: NOME DA EMPRESA | F20: COTAÇÕES | H20: DATA COTAÇÃO
C21: E034 - VALK T... | D21: VALK TUBOS | F21: 220 | G21: 220
C22: E035 - ACIONA... | D22: ACIONAR SERVIÇOS E EQUIPAMENTOS CONTRA INCÊNDIO | F22: 250 | G22: 250
C23: E038 - CENTER... | D23: CENTER FIRE | F23: 225 | G23: 225
C26: OBSERVAÇÕES:
B28: FONTE | C28: CÓDIGO | D28: DESCRIÇÃO | E28: UNIDADE | F28: MÉDIA | H28: ÍNDICE RETROAÇÃO
F29: DESONERADA | G29: ONERADA
A30: 286 | B30: COTAÇÃO | C30: COT 286_SEE | D30: BUJÃO DE REBORDO 2.1/2" | E30: UN | F30: 15 | G30: 15
C31: EMPRESA | D31: NOME DA EMPRESA | F31: COTAÇÕES | H31: DATA COTAÇÃO
C32: E076 - GOIÂNI... | D32: GOIÂNIA TUBOS | F32: 15 | G32: 15 | H32: 12/04/2019
C37: OBSERVAÇÕES:
B39: FONTE | C39: CÓDIGO | D39: DESCRIÇÃO | E39: UNIDADE | F39: MÉDIA | H39: ÍNDICE RETROAÇÃO
F40: DESONERADA | G40: ONERADA
A41: 88 | B41: COTAÇÃO | C41: COT 088_SEE | D41: BOTOEIRA BOMBA DE INCÊNDIO C/ MARTELO CONVENCIONAL/ ANALÓGICA | E41: UN | F41: 63.5 | G41: 63.5
C42: EMPRESA | D42: NOME DA EMPRESA | F42: COTAÇÕES | H42: DATA COTAÇÃO
C43: E034 - VALK T... | D43: VALK TUBOS | F43: 58 | G43: 58
C44: E035 - ACIONA... | D44: ACIONAR SERVIÇOS E EQUIPAMENTOS CONTRA INCÊNDIO | F44: 67.5 | G44: 67.5
C45: E038 - CENTER... | D45: CENTER FIRE | F45: 65 | G45: 65
C48: OBSERVAÇÕES:
B50: FONTE | C50: CÓDIGO | D50: DESCRIÇÃO | E50: UNIDADE | F50: MÉDIA | H50: ÍNDICE RETROAÇÃO
F51: DESONERADA | G51: ONERADA
A52: 90 | B52: COTAÇÃO | C52: COT 090_SEE | D52: ACIONADOR MANUAL DE ALARME | E52: UN | F52: 83.33333333 | G52: 83.33333333
C53: EMPRESA | D53: NOME DA EMPRESA | F53: COTAÇÕES | H53: DATA COTAÇÃO
C54: E034 - VALK T... | D54: VALK TUBOS | F54: 120 | G54: 120
C55: E035 - ACIONA... | D55: ACIONAR SERVIÇOS E EQUIPAMENTOS CONTRA INCÊNDIO | F55: 65 | G55: 65
C56: E038 - CENTER... | D56: CENTER FIRE | F56: 65 | G56: 65
C59: OBSERVAÇÕES:
B61: FONTE | C61: CÓDIGO | D61: DESCRIÇÃO | E61: UNIDADE | F61: MÉDIA | H61: ÍNDICE RETROAÇÃO
F62: DESONERADA | G62: ONERADA
A63: 92 | B63: COTAÇÃO | C63: COT 092_SEE | D63: CENTRAL DE DETECÇÃO E ALARME DE 40 SETORES COM BATERIA (PREÇO MÉDIO) | E63: UN | F63: 963.3333333 | G63: 963.3333333
C64: EMPRESA | D64: NOME DA EMPRESA | F64: COTAÇÕES | H64: DATA COTAÇÃO
C65: E034 - VALK T... | D65: VALK TUBOS | F65: 840 | G65: 840
C66: E035 - ACIONA... | D66: ACIONAR SERVIÇOS E EQUIPAMENTOS CONTRA INCÊNDIO | F66: 980 | G66: 980
C67: E038 - CENTER... | D67: CENTER FIRE | F67: 1070 | G67: 1070
C70: OBSERVAÇÕES:
B72: FONTE | C72: CÓDIGO | D72: DESCRIÇÃO | E72: UNIDADE | F72: MÉDIA | H72: ÍNDICE RETROAÇÃO
F73: DESONERADA | G73: ONERADA
A74: 103 | B74: COTAÇÃO | C74: COT 103_SEE | D74: NIPLE DE REDUÇÃO 1/2" X 1/4" BSP | E74: UN | F74: 6.053333333 | G74: 6.053333333
C75: EMPRESA | D75: NOME DA EMPRESA | F75: COTAÇÕES | H75: DATA COTAÇÃO
C76: E070 - FOCO R... | D76: FOCO REPRESENTAÇÃO E CONSULTORIA LTDA-ME | F76: 4.46 | G76: 4.46 | H76: 12/02/2019
C77: E071 - CASA D... | D77: CASA DAS PEÇAS COM E INDUSTRIA DE FOGOES LTDA | F77: 3.9 | G77: 3.9 | H77: 11/02/2019
C78: E072 - AMIG I... | D78: AMIG INSTALAÇÃO DE REDE DE GÁS E INCÊNDIO | F78: 9.8 | G78: 9.8 | H78: 08/02/2019
C81: OBSERVAÇÕES:
B83: FONTE | C83: CÓDIGO | D83: DESCRIÇÃO | E83: UNIDADE | F83: MÉDIA | H83: ÍNDICE RETROAÇÃO
F84: DESONERADA | G84: ONERADA
A85: 104 | B85: COTAÇÃO | C85: COT 104_SEE | D85: NIPLE DE REDUÇÃO 3/4" X 1/2" BSP | E85: UN | F85: 9.71 | G85: 9.71
C86: EMPRESA | D86: NOME DA EMPRESA | F86: COTAÇÕES | H86: DATA COTAÇÃO
C87: E070 - FOCO R... | D87: FOCO REPRESENTAÇÃO E CONSULTORIA LTDA-ME | F87: 10.93 | G87: 10.93 | H87: 12/02/2019
C88: E071 - CASA D... | D88: CASA DAS PEÇAS COM E INDUSTRIA DE FOGOES LTDA | F88: 5.5 | G88: 5.5 | H88: 11/02/2019
C89: E072 - AMIG I... | D89: AMIG INSTALAÇÃO DE REDE DE GÁS E INCÊNDIO | F89: 12.7 | G89: 12.7 | H89: 08/02/2019
C92: OBSERVAÇÕES:
B94: FONTE | C94: CÓDIGO | D94: DESCRIÇÃO | E94: UNIDADE | F94: MÉDIA | H94: ÍNDICE RETROAÇÃO
F95: DESONERADA | G95: ONERADA
A96: 281 | B96: COTAÇÃO | C96: COT 281_SEE | D96: VÁLVULA UGV 3/4" (S) LATÃO | E96: UN | F96: 15.83666667 | G96: 15.83666667
C97: EMPRESA | D97: NOME DA EMPRESA | F97: COTAÇÕES | H97: DATA COTAÇÃO
C98: E070 - FOCO R... | D98: FOCO REPRESENTAÇÃO E CONSULTORIA LTDA-ME | F98: 12.51 | G98: 12.51 | H98: 12/02/2019
C99: E071 - CASA D... | D99: CASA DAS PEÇAS COM E INDUSTRIA DE FOGOES LTDA | F99: 17.5 | G99: 17.5 | H99: 11/02/2019
C100: E072 - AMIG I... | D100: AMIG INSTALAÇÃO DE REDE DE GÁS E INCÊNDIO | F100: 17.5 | G100: 17.5 | H100: 08/02/2019
C103: OBSERVAÇÕES:
B105: FONTE | C105: CÓDIGO | D105: DESCRIÇÃO | E105: UNIDADE | F105: MÉDIA | H105: ÍNDICE RETROAÇÃO
F106: DESONERADA | G106: ONERADA
A107: 282 | B107: COTAÇÃO | C107: COT 282_SEE | D107: VÁLVULA UGV 1/2" (S) LATÃO | E107: UN | F107: 15.16666667 | G107: 15.16666667
C108: EMPRESA | D108: NOME DA EMPRESA | F108: COTAÇÕES | H108: DATA COTAÇÃO
C109: E070 - FOCO R... | D109: FOCO REPRESENTAÇÃO E CONSULTORIA LTDA-ME | F109: 11.2 | G109: 11.2 | H109: 12/02/2019
C110: E071 - CASA D... | D110: CASA DAS PEÇAS COM E INDUSTRIA DE FOGOES LTDA | F110: 17.5 | G110: 17.5 | H110: 11/02/2019
C111: E072 - AMIG I... | D111: AMIG INSTALAÇÃO DE REDE DE GÁS E INCÊNDIO | F111: 16.8 | G111: 16.8 | H111: 08/02/2019
C114: OBSERVAÇÕES:
B116: FONTE | C116: CÓDIGO | D116: DESCRIÇÃO | E116: UNIDADE | F116: MÉDIA | H116: ÍNDICE RETROAÇÃO
F117: DESONERADA | G117: ONERADA
A118: 102 | B118: COTAÇÃO | C118: COT 102_SEE | D118: REGULADOR DE 2º ESTÁGIO 5KG/H | E118: UN | F118: 59.83333333 | G118: 59.83333333
C119: EMPRESA | D119: NOME DA EMPRESA | F119: COTAÇÕES | H119: DATA COTAÇÃO
C120: E070 - FOCO R... | D120: FOCO REPRESENTAÇÃO E CONSULTORIA LTDA-ME | F120: 38.9 | G120: 38.9 | H120: 12/02/2019
C121: E071 - CASA D... | D121: CASA DAS PEÇAS COM E INDUSTRIA DE FOGOES LTDA | F121: 55.6 | G121: 55.6 | H121: 11/02/2019
C122: E072 - AMIG I... | D122: AMIG INSTALAÇÃO DE REDE DE GÁS E INCÊNDIO | F122: 85 | G122: 85 | H122: 08/02/2019
C125: OBSERVAÇÕES: | D125: AMIG enviou cotação de regulador de 2º estágio de 12kg/h.
B127: FONTE | C127: CÓDIGO | D127: DESCRIÇÃO | E127: UNIDADE | F127: MÉDIA | H127: ÍNDICE RETROAÇÃO
F128: DESONERADA | G128: ONERADA
A129: 101 | B129: COTAÇÃO | C129: COT 101_SEE | D129: REGULADOR DE 1º ESTÁGIO 60KG/H MODELO AP-40 COM MANÔMETRO | E129: UN | F129: 205.5766667 | G129: 205.5766667
C130: EMPRESA | D130: NOME DA EMPRESA | F130: COTAÇÕES | H130: DATA COTAÇÃO
C131: E070 - FOCO R... | D131: FOCO REPRESENTAÇÃO E CONSULTORIA LTDA-ME | F131: 148.73 | G131: 148.73 | H131: 12/02/2019
C132: E071 - CASA D... | D132: CASA DAS PEÇAS COM E INDUSTRIA DE FOGOES LTDA | F132: 198 | G132: 198 | H132: 11/02/2019
C133: E072 - AMIG I... | D133: AMIG INSTALAÇÃO DE REDE DE GÁS E INCÊNDIO | F133: 270 | G133: 270 | H133: 08/02/2019
C136: OBSERVAÇÕES:
B138: FONTE | C138: CÓDIGO | D138: DESCRIÇÃO | E138: UNIDADE | F138: MÉDIA | H138: ÍNDICE RETROAÇÃO
F139: DESONERADA | G139: ONERADA
A140: 195 | B140: COTAÇÃO | C140: COT 195_SEE | D140: LÂMPADA LED TUBULAR 18W | E140: UN | F140: 21.96 | G140: 21.96
C141: EMPRESA | D141: NOME DA EMPRESA | F141: COTAÇÕES | H141: DATA COTAÇÃO
C142: E030 - AJEL M... | D142: AJEL MATERIAIS ELÉTRICOS | F142: 19.89 | G142: 19.89
C143: E013 - ELETRO... | D143: ELETROTRANSOL | F143: 25.99 | G143: 25.99
C144: E014 - MAKRO ... | D144: MAKRO SERVICE | F144: 20 | G144: 20
C147: OBSERVAÇÕES:
